Service,Expense Subtype,Merchant Name,Expense Invoice Date,Total Expense
EDUCATION & LEARNING,Travel/Subsistence,OYSTER BUS AUTOTOP,01/10/2017,40.00
FINANCE,Travel/Subsistence,OYSTER AUTOTOPUP,01/10/2017,20.00
FINANCE,Travel/Subsistence,OYSTER BUS AUTOTOP,01/10/2017,20.00
CHILDREN'S SERVICES,Books/Publications/Resources,AMAZON.CO.UK,02/10/2017,9.20
CHILDREN'S SERVICES,Books/Publications/Resources,AMAZON.CO.UK,02/10/2017,35.46
CHILDREN'S SERVICES,Books/Publications/Resources,Amazon UK Marketplace,02/10/2017,8.18
CHILDREN'S SERVICES,Books/Publications/Resources,Amazon UK Marketplace,02/10/2017,119.78
CHILDREN'S SERVICES,Books/Publications/Resources,Amazon UK Marketplace,02/10/2017,13.33
CHILDREN'S SERVICES,Facilities-Advertising,WH SMITH,02/10/2017,3.99
CHILDREN'S SERVICES,Travel/Subsistence,OYSTER AUTOTOPUP,02/10/2017,40.00
CHILDREN'S SERVICES,Travel/Subsistence,OYSTER AUTOTOPUP,02/10/2017,40.00
CHILDREN'S SERVICES,Travel/Subsistence,OYSTER AUTOTOPUP,02/10/2017,40.00
CHILDREN'S SERVICES,Travel/Subsistence,OYSTER AUTOTOPUP,02/10/2017,40.00
CHILDREN'S SERVICES,Travel/Subsistence,OYSTER AUTOTOPUP,02/10/2017,40.00
CHILDREN'S SERVICES,Travel/Subsistence,TRAINLINE,02/10/2017,23.92
CHILDREN'S SERVICES,Travel/Subsistence,TRAINLINE,02/10/2017,28.20
CHILDREN'S SERVICES,Travel/Subsistence,TRAINLINE,02/10/2017,52.43
CORPORATE AFFAIRS,Travel/Subsistence,SW RAILWAY,02/10/2017,39.15
ENVIRONMENT,Building-Tools,SCREWFIX,02/10/2017,27.91
FINANCE,Education-Other,WWW.CIPS.ORG,02/10/2017,600.00
CHILDREN'S SERVICES,Use of Public Transport,TRAINLINE,03/10/2017,133.87
EDUCATION & LEARNING,Education-Library Books,AMAZON.CO.UK,03/10/2017,24.50
EDUCATION & LEARNING,Education-Library Books,Amazon UK Marketplace,03/10/2017,77.57
EDUCATION & LEARNING,Facilities-Printing,Amazon UK Retail,03/10/2017,143.90
EDUCATION & LEARNING,Facilities-Printing,Amazon UK Retail,03/10/2017,24.36
ENVIRONMENT,Sports Equipment,WWW.EVAQ8.CO.UK,03/10/2017,40.05
ADULT SOCIAL CARE,Catering Food & Drink,TESCO STORE 3205,04/10/2017,180.18
BUSINESS & CUSTOMER SERVICES,Legal Services-Other,HMCOURTS-SERVICE.G,04/10/2017,"6,105.00"
EDUCATION & LEARNING,Stationery,Amazon UK Marketplace,04/10/2017,32.73
ENVIRONMENT,Building-Timber,B & Q 1009,04/10/2017,44.80
ENVIRONMENT,Building-Timber,TP NORWOOD 9014,04/10/2017,89.22
HUMAN RESOURCES & ORGANISATIONAL DEVELOPMENT,Legal Services-General Support,EXPEDITE BUSINESS DEVE,04/10/2017,"1,344.66"
ADULT SOCIAL CARE,Travel/Subsistence,OYSTER AUTOTOPUP,05/10/2017,20.00
ADULT SOCIAL CARE,Travel/Subsistence,OYSTER BUS AUTOTOP,05/10/2017,20.00
CHILDREN'S SERVICES,Facilities-Advertising,PAYPAL *MANVANLDN,05/10/2017,143.38
CHILDREN'S SERVICES,Facilities-Storage,KATOR STORAGE LTD,05/10/2017,121.24
CHILDREN'S SERVICES,Financial Services,HM PASSPORT OFFICE,05/10/2017,92.00
CHILDREN'S SERVICES,Travel/Subsistence,OYSTER RENEW WEB,05/10/2017,20.00
EDUCATION & LEARNING,Education-Library Books,AMAZON UK RETAIL AMAZON.C,05/10/2017,11.54
EDUCATION & LEARNING,Education-Library Books,AMAZON UK RETAIL AMAZON.C,05/10/2017,15.99
EDUCATION & LEARNING,Education-Library Books,AMAZON.CO.UK,05/10/2017,2.65
EDUCATION & LEARNING,Education-Library Books,AMAZON.CO.UK,05/10/2017,8.80
EDUCATION & LEARNING,Education-Library Books,Amazon UK Marketplace,05/10/2017,4.43
EDUCATION & LEARNING,Education-Library Books,Amazon UK Marketplace,05/10/2017,4.21
EDUCATION & LEARNING,Education-Library Books,Amazon UK Retail,05/10/2017,38.73
EDUCATION & LEARNING,Education-Library Books,Amazon UK Retail,05/10/2017,9.99
EDUCATION & LEARNING,Education-Library Books,AMZ*Amazon.co.uk,05/10/2017,-6.99
ENVIRONMENT,Building-General,ACRE LANE BUILDERS,05/10/2017,191.01
ENVIRONMENT,Building-Tools,ACRE LANE TIMBER LTD,05/10/2017,25.69
ENVIRONMENT,Building-Tools,FORTRESS MASTER LOCKSMITH,05/10/2017,13.21
ADULT SOCIAL CARE,Catering Food & Drink,ICELAND,06/10/2017,109.32
CHILDREN'S SERVICES,Accommodation,THE GLEN,06/10/2017,84.00
CHILDREN'S SERVICES,Catering Food & Drink,SAINSBURYS S/MKTS,06/10/2017,33.35
CHILDREN'S SERVICES,Domestic Goods-Other,ARGOS RETAIL GROUP,06/10/2017,58.93
CHILDREN'S SERVICES,Domestic Goods-Other,ARGOS RETAIL GROUP,06/10/2017,56.96
CHILDREN'S SERVICES,Education-Other,PARTRIDGE & PRINT,06/10/2017,225.75
CHILDREN'S SERVICES,Financial Services,HM PASSPORT OFFICE,06/10/2017,75.50
CHILDREN'S SERVICES,Financial Services,HM PASSPORT OFFICE,06/10/2017,49.00
CHILDREN'S SERVICES,Financial Services,LAMBETH INTERNET PAYM,06/10/2017,22.36
CHILDREN'S SERVICES,Furniture-Domestic Furniture,Lampenwelt GmbH,06/10/2017,56.90
CHILDREN'S SERVICES,Haulage,PAYPAL *YELLOWEXPRE,06/10/2017,280.00
CHILDREN'S SERVICES,Travel/Subsistence,OYSTER AUTOTOPUP,06/10/2017,40.00
CHILDREN'S SERVICES,Travel/Subsistence,OYSTER AUTOTOPUP,06/10/2017,40.00
CHILDREN'S SERVICES,Travel/Subsistence,OYSTER BUS AUTOTOP,06/10/2017,40.00
CHILDREN'S SERVICES,Travel/Subsistence,TRAINLINE,06/10/2017,81.09
CHILDREN'S SERVICES,Travel/Subsistence,TRAINLINE,06/10/2017,190.13
CHILDREN'S SERVICES,Travel/Subsistence,TRAINLINE,06/10/2017,72.42
EDUCATION & LEARNING,Books/Publications/Resources,PARTY SUPERSTRS (CLAPH,06/10/2017,22.49
EDUCATION & LEARNING,Catering Food & Drink,LIDL UK,06/10/2017,39.53
EDUCATION & LEARNING,Domestic Goods-Other,POUNDLAND,06/10/2017,10.00
EDUCATION & LEARNING,Books/Publications/Resources,NATIONWIDE /W0278Z,07/10/2017,170.00
EDUCATION & LEARNING,Domestic Goods-Other,POUNDLAND,07/10/2017,2.00
EDUCATION & LEARNING,Domestic Goods-Other,POUNDWORLD,07/10/2017,2.00
EDUCATION & LEARNING,Travel/Subsistence,OYSTER BUS AUTOTOP,07/10/2017,40.00
ADULT SOCIAL CARE,Use of Public Transport,OYSTER BUS AUTOTOP,08/10/2017,20.00
CHILDREN'S SERVICES,Accommodation,FLEUR DE LIS INN LTD,09/10/2017,66.67
CHILDREN'S SERVICES,Conference Expenses,PAYPAL *L. A. OF IT,09/10/2017,840.00
CHILDREN'S SERVICES,Travel/Subsistence,TRAINLINE,09/10/2017,84.76
EDUCATION & LEARNING,Books/Publications/Resources,CASH ADVANCE FEE,09/10/2017,5.02
EDUCATION & LEARNING,Education-Other,AMAZON.CO.UK,09/10/2017,12.99
EDUCATION & LEARNING,Education-Other,AMAZON.CO.UK,09/10/2017,16.81
EDUCATION & LEARNING,Education-Other,Amazon UK Marketplace,09/10/2017,28.50
ENVIRONMENT,Building-General,SELCO TRADING CTR,09/10/2017,120.53
ENVIRONMENT,Building-Tools,FORTRESS MASTER LOCKSMITH,09/10/2017,210.81
"GROWTH, PLANNING & EMPLOYMENT",Books/Publications/Resources,H&M,09/10/2017,13.04
"GROWTH, PLANNING & EMPLOYMENT",Use of Public Transport,BRIX CENTRAL STOP,09/10/2017,21.20
"GROWTH, PLANNING & EMPLOYMENT",Use of Public Transport,BRIX CENTRAL STOP,09/10/2017,92.30
"GROWTH, PLANNING & EMPLOYMENT",Use of Public Transport,BRIX CENTRAL STOP,09/10/2017,83.00
"GROWTH, PLANNING & EMPLOYMENT",Use of Public Transport,BRIXTON NEWS,09/10/2017,56.80
"GROWTH, PLANNING & EMPLOYMENT",Use of Public Transport,BRIXTON NEWS,09/10/2017,43.40
"GROWTH, PLANNING & EMPLOYMENT",Use of Public Transport,LUL TICKET MACHINE,09/10/2017,10.00
CHILDREN'S SERVICES,Accommodation,CARNACH HOUSE,10/10/2017,135.00
CHILDREN'S SERVICES,Domestic Goods-Other,CURRYS ONLINE,10/10/2017,266.98
CHILDREN'S SERVICES,Domestic Goods-Other,WWW.ARGOS.CO.UK,10/10/2017,335.90
CHILDREN'S SERVICES,Domestic Goods-Other,WWW.ARGOS.CO.UK,10/10/2017,266.93
CHILDREN'S SERVICES,Domestic Goods-Other,WWW.ARGOS.CO.UK,10/10/2017,570.97
CHILDREN'S SERVICES,Domestic Goods-Other,WWW.ARGOS.CO.UK,10/10/2017,779.97
CHILDREN'S SERVICES,Education-Library Books,Amazon UK Marketplace,10/10/2017,50.79
CHILDREN'S SERVICES,Facilities-Storage,SAFESTORE LIMITED,10/10/2017,898.65
CHILDREN'S SERVICES,Financial Services,GRO HM PASSPORT OFFICE,10/10/2017,69.65
CHILDREN'S SERVICES,Financial Services,THE HOME OFFICE,10/10/2017,"2,297.00"
CHILDREN'S SERVICES,Financial Services,LAMBETH INTERNET PAYM,10/10/2017,508.25
CHILDREN'S SERVICES,Financial Services,LAMBETH INTERNET PAYM,10/10/2017,781.22
CHILDREN'S SERVICES,Furniture-Domestic Furniture,IKEA ONLINE,10/10/2017,495.00
CHILDREN'S SERVICES,Furniture-Domestic Furniture,IKEA ONLINE,10/10/2017,394.00
CHILDREN'S SERVICES,Furniture-Domestic Furniture,PAYPAL *SLF24 LTD.,10/10/2017,368.00
CHILDREN'S SERVICES,Professional & Advisory Services,WWW.DCBLTD.COM,10/10/2017,"7,517.20"
CHILDREN'S SERVICES,Taxi Fares,WWW.ADDISONLEE.COM,10/10/2017,25.62
CHILDREN'S SERVICES,Taxi Fares,WWW.ADDISONLEE.COM,10/10/2017,27.28
EDUCATION & LEARNING,Domestic Goods-Other,ARGOS RETAIL GROUP,10/10/2017,70.39
EDUCATION & LEARNING,Travel/Subsistence,TRAINLINE,10/10/2017,72.93
ENVIRONMENT,Stationery,Amazon UK Marketplace,10/10/2017,101.90
HOUSING SERVICES (HRA),Use of Public Transport,BELLS NEWS,10/10/2017,50.50
HOUSING SERVICES (HRA),Use of Public Transport,BELLS NEWS,10/10/2017,100.50
POLICY & COMMUNICATIONS,Catering Food & Drink,MARKS&SPENCER PLC SACA,10/10/2017,44.85
ADULT SOCIAL CARE,Financial Services,CASH ADVANCE FEE,11/10/2017,7.38
ADULT SOCIAL CARE,Financial Services,SAINSBURYS CASH,11/10/2017,250.00
ADULT SOCIAL CARE,Travel/Subsistence,OYSTER BUS AUTOTOP,11/10/2017,20.00
BALANCE SHEET,Personal,LIDL UK,11/10/2017,-0.42
CHILDREN'S SERVICES,Mail Services-Postage,THE POST OFFICE,11/10/2017,336.00
CORPORATE AFFAIRS,Legal Services-General Support,INNER TEMPLE,11/10/2017,60.00
CORPORATE AFFAIRS,Taxi Fares,WWW.ADDISONLEE.COM,11/10/2017,70.30
CORPORATE AFFAIRS,Travel/Subsistence,LUL TICKET MACHINE,11/10/2017,50.00
CORPORATE AFFAIRS,Travel/Subsistence,TICKETOFFICESALE,11/10/2017,75.00
CORPORATE AFFAIRS,Travel/Subsistence,TRAINLINE,11/10/2017,83.13
EDUCATION & LEARNING,Catering Food & Drink,LIDL UK,11/10/2017,13.57
FINANCE,Use of Public Transport,LUL TICKET MACHINE,11/10/2017,30.00
HOUSING SERVICES (HRA),Building-General,HOWARD BROS. (CAMBERWE,11/10/2017,126.24
HOUSING SERVICES (HRA),Building-General,HOWARD BROS. (CAMBERWE,11/10/2017,51.02
HOUSING SERVICES (HRA),Building-General,LEYLAND SDM CLAPHAM HIGH,11/10/2017,310.82
HOUSING SERVICES (HRA),Catering Food & Drink,SAINSBURY'S S/MKT,11/10/2017,32.00
HOUSING SERVICES (HRA),Consultancy-Business,WP-WWW.OYEZFORMSLINK.C,11/10/2017,122.37
HOUSING SERVICES (HRA),Consultancy-Other,TV LICENSING,11/10/2017,147.00
HOUSING SERVICES (HRA),Domestic Goods-Other,PC WORLD ONLINE,11/10/2017,0.00
HOUSING SERVICES (HRA),Domestic Goods-Other,PC WORLD ONLINE,11/10/2017,20.82
HOUSING SERVICES (HRA),Education-Library Books,AMAZON.CO.UK,11/10/2017,11.02
HOUSING SERVICES (HRA),Financial Services,LAMBETH INTERNET PAYM,11/10/2017,12.20
HOUSING SERVICES (HRA),Furniture-Domestic Furniture,WWW.OFFICEFURNITUREONL,11/10/2017,405.60
HOUSING SERVICES (HRA),Furniture-Domestic Furniture,WWW.OFFICEFURNITUREONL,11/10/2017,295.00
HOUSING SERVICES (HRA),Furniture-Domestic Furniture,WWW.OFFICEFURNITUREONL,11/10/2017,169.00
HOUSING SERVICES (HRA),Horticultural-Seeds & Plants,LOLA FLOWER BOUTIQUE,11/10/2017,35.00
HOUSING SERVICES (HRA),IT Consumables,INTELLISOFTWARE LTD,11/10/2017,44.00
HOUSING SERVICES (HRA),IT Consumables,INTELLISOFTWARE LTD,11/10/2017,44.00
HOUSING SERVICES (HRA),Travel/Subsistence,NEW SOUTHERN RAILW,11/10/2017,80.00
ADULT SOCIAL CARE,Catering Food & Drink,TESCO STORES 5999,12/10/2017,69.80
ADULT SOCIAL CARE,Domestic Goods-Other,AMAZON UK RETAIL AMAZON.C,12/10/2017,33.70
ADULT SOCIAL CARE,Domestic Goods-Other,WWW.ARGOS.CO.UK,12/10/2017,83.94
ADULT SOCIAL CARE,Education-Arts/Crafts,COWLING & WILCOX LTD,12/10/2017,107.32
ADULT SOCIAL CARE,Stationery,WWW.THESUPERMARKETONLINE,12/10/2017,149.22
BALANCE SHEET,Personal,WWW.MAPLIN.CO.UK,12/10/2017,-0.01
CHILDREN'S SERVICES,Accommodation,PARK PLAZA RIVERBANK,12/10/2017,"1,047.60"
CHILDREN'S SERVICES,Accommodation,PREMIER INN 44536100,12/10/2017,60.41
CHILDREN'S SERVICES,Accommodation,PREMIER INN 44536765,12/10/2017,131.99
CHILDREN'S SERVICES,Accommodation,LEIGHAM COURT HOTEL,12/10/2017,70.00
CHILDREN'S SERVICES,Books/Publications/Resources,Amazon UK Retail,12/10/2017,28.97
CHILDREN'S SERVICES,Building-Timber,WICKES BUILDING,12/10/2017,114.71
CHILDREN'S SERVICES,Clothing-Uniforms,WWW.GEAR-UK.COM,12/10/2017,31.00
CHILDREN'S SERVICES,Domestic Goods-Other,ARGOS DIRECT,12/10/2017,"1,262.91"
CHILDREN'S SERVICES,Domestic Goods-Other,MOTHERCARE DIRECT-E-CO,12/10/2017,40.00
CHILDREN'S SERVICES,Domestic Goods-Other,MOTHERCARE DIRECT-E-CO,12/10/2017,138.47
CHILDREN'S SERVICES,Domestic Goods-Other,WWW.JOHNLEWIS.COM,12/10/2017,848.99
CHILDREN'S SERVICES,Domestic Goods-Other,ARGOS RETAIL GROUP,12/10/2017,59.99
CHILDREN'S SERVICES,Education-Other,WEST THAMES COLLEG,12/10/2017,29.50
CHILDREN'S SERVICES,Facilities-Printing,Amazon UK Retail,12/10/2017,105.99
CHILDREN'S SERVICES,Financial Services,GRO HM PASSPORT OFFICE,12/10/2017,-46.25
CHILDREN'S SERVICES,Financial Services,HM PASSPORT OFFICE,12/10/2017,72.50
CHILDREN'S SERVICES,Financial Services,HM PASSPORT OFFICE,12/10/2017,72.50
CHILDREN'S SERVICES,Legal Services-Other,HMCOURTS-SERVICE.G,12/10/2017,40.00
CHILDREN'S SERVICES,Travel/Subsistence,OYSTER AUTOTOPUP,12/10/2017,20.00
CHILDREN'S SERVICES,Travel/Subsistence,OYSTER AUTOTOPUP,12/10/2017,40.00
CHILDREN'S SERVICES,Travel/Subsistence,OYSTER BUS AUTOTOP,12/10/2017,20.00
CHILDREN'S SERVICES,Travel/Subsistence,OYSTER AUTOTOPUP,12/10/2017,40.00
CHILDREN'S SERVICES,Travel/Subsistence,OYSTER AUTOTOPUP,12/10/2017,20.00
CHILDREN'S SERVICES,Travel/Subsistence,OYSTER BUS AUTOTOP,12/10/2017,20.00
CHILDREN'S SERVICES,Travel/Subsistence,OYSTER BUS AUTOTOP,12/10/2017,20.00
CHILDREN'S SERVICES,Travel/Subsistence,OYSTER BUS AUTOTOP,12/10/2017,20.00
CHILDREN'S SERVICES,Travel/Subsistence,OYSTER BUS AUTOTOP,12/10/2017,20.00
CHILDREN'S SERVICES,Travel/Subsistence,OYSTER RENEW WEB,12/10/2017,20.00
CHILDREN'S SERVICES,Travel/Subsistence,OYSTER RENEW WEB,12/10/2017,20.00
CHILDREN'S SERVICES,Travel/Subsistence,OYSTER RENEW WEB,12/10/2017,20.00
CHILDREN'S SERVICES,Travel/Subsistence,OYSTER AUTOTOPUP,12/10/2017,20.00
CHILDREN'S SERVICES,Travel/Subsistence,OYSTER BUS AUTOTOP,12/10/2017,20.00
CHILDREN'S SERVICES,Travel/Subsistence,OYSTER BUS AUTOTOP,12/10/2017,20.00
CHILDREN'S SERVICES,Travel/Subsistence,OYSTER BUS AUTOTOP,12/10/2017,20.00
CHILDREN'S SERVICES,Travel/Subsistence,OYSTER AUTOTOPUP,12/10/2017,20.00
CHILDREN'S SERVICES,Travel/Subsistence,OYSTER BUS AUTOTOP,12/10/2017,20.00
CHILDREN'S SERVICES,Travel/Subsistence,OYSTER BUS AUTOTOP,12/10/2017,20.00
CHILDREN'S SERVICES,Travel/Subsistence,OYSTER BUS AUTOTOP,12/10/2017,20.00
CHILDREN'S SERVICES,Travel/Subsistence,OYSTER BUS AUTOTOP,12/10/2017,20.00
CHILDREN'S SERVICES,Travel/Subsistence,OYSTER BUS AUTOTOP,12/10/2017,40.00
CHILDREN'S SERVICES,Travel/Subsistence,OYSTER RENEW WEB,12/10/2017,40.00
CHILDREN'S SERVICES,Travel/Subsistence,OYSTER RENEW WEB,12/10/2017,20.00
CHILDREN'S SERVICES,Travel/Subsistence,OYSTER RENEW WEB,12/10/2017,30.00
CHILDREN'S SERVICES,Travel/Subsistence,OYSTER RENEW WEB,12/10/2017,20.00
CHILDREN'S SERVICES,Travel/Subsistence,BRIXTONHILL EXPRESS,12/10/2017,50.00
CHILDREN'S SERVICES,Works-Construction,DISCOUNT CARPETS S,12/10/2017,291.00
EDUCATION & LEARNING,Building-Others,TIMPSON LTD,12/10/2017,18.00
EDUCATION & LEARNING,Education-Library Books,AMAZON.CO.UK,12/10/2017,6.78
EDUCATION & LEARNING,Education-Library Books,Amazon UK Marketplace,12/10/2017,2.81
EDUCATION & LEARNING,Education-Library Books,Amazon UK Marketplace,12/10/2017,6.08
EDUCATION & LEARNING,Education-Library Books,Amazon UK Marketplace,12/10/2017,23.26
EDUCATION & LEARNING,Education-Library Books,Amazon UK Marketplace,12/10/2017,27.19
EDUCATION & LEARNING,Education-Library Books,Amazon UK Retail,12/10/2017,8.89
EDUCATION & LEARNING,Education-Library Books,Amazon UK Retail,12/10/2017,36.88
EDUCATION & LEARNING,Education-Library Books,Amazon UK Retail,12/10/2017,6.99
EDUCATION & LEARNING,Education-Other,THE MCPS-PRS ALLIANCE,12/10/2017,135.38
ENVIRONMENT,Domestic Goods-Other,WWW.MAPLIN.CO.UK,12/10/2017,274.99
ENVIRONMENT,Legal Services-Other,LAND REGISTRY,12/10/2017,6.00
ENVIRONMENT,Mail Services-Postage,POST OFFICE COUNTER,12/10/2017,19.35
FINANCE,Travel/Subsistence,OYSTER BUS AUTOTOP,12/10/2017,20.00
FINANCE,Travel/Subsistence,TFL ROAD CHARGE,12/10/2017,11.50
HUMAN RESOURCES & ORGANISATIONAL DEVELOPMENT,Education-Toys,Amazon UK Marketplace,12/10/2017,18.94
HUMAN RESOURCES & ORGANISATIONAL DEVELOPMENT,Financial Services,UKBA6103404576,12/10/2017,"-3,500.00"
HUMAN RESOURCES & ORGANISATIONAL DEVELOPMENT,Travel/Subsistence,TRAINLINE,12/10/2017,83.13
POLICY & COMMUNICATIONS,IT Software,DOMINION RETAIL LTD,12/10/2017,56.69
SENIOR MANAGEMENT - ADULTS & PUBLIC HEALTH,Accommodation,BRITANNIA,12/10/2017,311.50
SENIOR MANAGEMENT - ADULTS & PUBLIC HEALTH,Accommodation,ROYAL BATH HOTEL,12/10/2017,68.00
SENIOR MANAGEMENT - ADULTS & PUBLIC HEALTH,Accommodation,ROYAL BATH HOTEL,12/10/2017,-68.00
ADULT SOCIAL CARE,Accommodation,PREMIER INN44010690,13/10/2017,78.32
ADULT SOCIAL CARE,Catering Food & Drink,ICELAND,13/10/2017,101.49
ADULT SOCIAL CARE,Financial Services,CASH ADVANCE FEE,13/10/2017,2.95
ADULT SOCIAL CARE,Financial Services,HSBC/M&S BRIXTON,13/10/2017,50.00
ADULT SOCIAL CARE,Legal Services-Other,HMCOURTS-SERVICE.G,13/10/2017,75.00
ADULT SOCIAL CARE,Legal Services-Other,HMCOURTS-SERVICE.G,13/10/2017,150.00
ADULT SOCIAL CARE,Legal Services-Other,HMCOURTS-SERVICE.G,13/10/2017,150.00
ADULT SOCIAL CARE,Legal Services-Other,HMCOURTS-SERVICE.G,13/10/2017,75.00
ADULT SOCIAL CARE,Legal Services-Other,HMCOURTS-SERVICE.G,13/10/2017,75.00
ADULT SOCIAL CARE,Legal Services-Other,HMCOURTS-SERVICE.G,13/10/2017,150.00
ADULT SOCIAL CARE,Legal Services-Other,HMCOURTS-SERVICE.G,13/10/2017,75.00
ADULT SOCIAL CARE,Legal Services-Other,HMCOURTS-SERVICE.G,13/10/2017,150.00
ADULT SOCIAL CARE,Legal Services-Other,HMCOURTS-SERVICE.G,13/10/2017,225.00
ADULT SOCIAL CARE,Taxi Fares,WWW.ADDISONLEE.COM,13/10/2017,129.19
ADULT SOCIAL CARE,Travel/Subsistence,LONDON & SOUTH EAS,13/10/2017,161.00
ADULT SOCIAL CARE,Travel/Subsistence,OYSTER AUTOTOPUP,13/10/2017,20.00
ADULT SOCIAL CARE,Travel/Subsistence,OYSTER BUS AUTOTOP,13/10/2017,20.00
EDUCATION & LEARNING,Books/Publications/Resources,WH SMITH,13/10/2017,253.80
EDUCATION & LEARNING,Facilities-Printing,DANTECH,13/10/2017,129.60
ENVIRONMENT,Building-General,SCREWFIX DIRECT,13/10/2017,32.38
ENVIRONMENT,Building-Paint,SELCO TRADING CTR,13/10/2017,157.40
"GROWTH, PLANNING & EMPLOYMENT",Catering Food & Drink,SAINSBURYS STOCKWE,13/10/2017,42.70
"GROWTH, PLANNING & EMPLOYMENT",Cycles Purchase,HALFORDS 0716,13/10/2017,15.64
"GROWTH, PLANNING & EMPLOYMENT",Domestic Goods-Other,MICHAEL'S SHOE REP,13/10/2017,77.96
"GROWTH, PLANNING & EMPLOYMENT",Travel/Subsistence,OYSTER AUTOTOPUP,13/10/2017,20.00
"GROWTH, PLANNING & EMPLOYMENT",Travel/Subsistence,OYSTER RENEW TEL,13/10/2017,0.70
"GROWTH, PLANNING & EMPLOYMENT",Travel/Subsistence,OYSTER RENEW WEB,13/10/2017,20.00
"GROWTH, PLANNING & EMPLOYMENT",Travel/Subsistence,OYSTER RENEW WEB,13/10/2017,0.00
"GROWTH, PLANNING & EMPLOYMENT",Travel/Subsistence,TFL CYCLE HIRE,13/10/2017,90.00
"GROWTH, PLANNING & EMPLOYMENT",Travel/Subsistence,TFL CYCLE HIRE,13/10/2017,1.67
"GROWTH, PLANNING & EMPLOYMENT",Vehicle Fuel,TFL CYCLE HIRE,13/10/2017,0.33
FINANCE,Travel/Subsistence,OYSTER BUS AUTOTOP,14/10/2017,40.00
ADULT SOCIAL CARE,Catering Food & Drink,TESCO STORES 5999,16/10/2017,92.16
ADULT SOCIAL CARE,Financial Services,CASH ADVANCE FEE,16/10/2017,7.38
ADULT SOCIAL CARE,Financial Services,NATWEST BANK /,16/10/2017,250.00
ADULT SOCIAL CARE,Legal Services-Other,HMCOURTS-SERVICE.G,16/10/2017,300.00
ENVIRONMENT,Education-Library Books,Amazon UK Marketplace,16/10/2017,43.30
HOUSING SERVICES (HRA),Building-Others,SITEBOX LTD,16/10/2017,100.79
HOUSING SERVICES (HRA),Building-Others,SITEBOX LTD,16/10/2017,100.79
CORPORATE AFFAIRS,Stationery,Amazon UK Marketplace,17/10/2017,104.60
FINANCE,Education-Other,EPAY,17/10/2017,101.00
POLICY & COMMUNICATIONS,Conference Expenses,PAYPAL *NADPO,17/10/2017,250.00
POLICY & COMMUNICATIONS,Conference Expenses,JURYS INN LEEDS FRONT DES,17/10/2017,273.32
POLICY & COMMUNICATIONS,IT Services,HOO*Hootsuite Media Inc.,17/10/2017,5.64
CHILDREN'S SERVICES,Books/Publications/Resources,MORLEYS,18/10/2017,8.95
ENVIRONMENT,Travel/Subsistence,GWR LOND PADD SST,18/10/2017,24.50
FINANCE,Use of Public Transport,LUL TICKET MACHINE,18/10/2017,20.00
ADULT SOCIAL CARE,Travel/Subsistence,OYSTER BUS AUTOTOP,19/10/2017,20.00
ADULT SOCIAL CARE,Travel/Subsistence,OYSTER BUS AUTOTOP,19/10/2017,20.00
CHILDREN'S SERVICES,Accommodation,CEDAR COURT BRADFORD,19/10/2017,192.00
CHILDREN'S SERVICES,Domestic Goods-Other,COLLEGE KITS DIRECT LT,19/10/2017,120.50
CHILDREN'S SERVICES,Domestic Goods-Other,DENNISWILLECOM,19/10/2017,148.95
CHILDREN'S SERVICES,Financial Services,GRO HM PASSPORT OFFICE,19/10/2017,9.25
CHILDREN'S SERVICES,Legal Services-Other,HMCOURTS-SERVICE.G,19/10/2017,230.00
CHILDREN'S SERVICES,Travel/Subsistence,OYSTER ISSUE WEB,19/10/2017,35.00
CHILDREN'S SERVICES,Travel/Subsistence,OYSTER RENEW WEB,19/10/2017,20.00
CHILDREN'S SERVICES,Travel/Subsistence,OYSTER RENEW WEB,19/10/2017,20.00
CHILDREN'S SERVICES,Travel/Subsistence,OYSTER BUS AUTOTOP,19/10/2017,20.00
CHILDREN'S SERVICES,Travel/Subsistence,OYSTER BUS AUTOTOP,19/10/2017,20.00
CHILDREN'S SERVICES,Travel/Subsistence,OYSTER ISSUE WEB,19/10/2017,35.00
CHILDREN'S SERVICES,Travel/Subsistence,OYSTER ISSUE WEB,19/10/2017,35.00
CHILDREN'S SERVICES,Travel/Subsistence,OYSTER RENEW WEB,19/10/2017,40.00
EDUCATION & LEARNING,Education-Library Books,Amazon UK Marketplace,19/10/2017,10.57
EDUCATION & LEARNING,Education-Library Books,Amazon UK Marketplace,19/10/2017,13.79
EDUCATION & LEARNING,Education-Library Books,Amazon UK Marketplace,19/10/2017,31.05
EDUCATION & LEARNING,Education-Library Books,Amazon UK Retail,19/10/2017,6.99
EDUCATION & LEARNING,Education-Library Books,Amazon UK Retail,19/10/2017,9.07
EDUCATION & LEARNING,Facilities-Printing,THE READING AGENCY,19/10/2017,42.00
EDUCATION & LEARNING,Facilities-Printing,THE READING AGENCY,19/10/2017,72.00
EDUCATION & LEARNING,Facilities-Printing,THE READING AGENCY,19/10/2017,222.00
FINANCE,Use of Public Transport,OYSTER AUTOTOPUP,19/10/2017,20.00
FINANCE,Use of Public Transport,OYSTER AUTOTOPUP,19/10/2017,20.00
FINANCE,Use of Public Transport,OYSTER AUTOTOPUP,19/10/2017,20.00
ADULT SOCIAL CARE,Catering Food & Drink,ICELAND,20/10/2017,134.01
ADULT SOCIAL CARE,Organised Activities,ENFORCEMENT AGENT,20/10/2017,138.00
ENVIRONMENT,Building-Paint,B & Q 1009,20/10/2017,168.07
ENVIRONMENT,Building-Paint,S LONDON DECORTORS,20/10/2017,41.66
BALANCE SHEET,Personal,AMAZON EU AMAZON.CO.UK,22/10/2017,-6.41
CHILDREN'S SERVICES,Travel/Subsistence,OYSTER AUTOTOPUP,22/10/2017,40.00
CHILDREN'S SERVICES,Travel/Subsistence,OYSTER AUTOTOPUP,22/10/2017,40.00
CHILDREN'S SERVICES,Travel/Subsistence,OYSTER AUTOTOPUP,22/10/2017,40.00
CHILDREN'S SERVICES,Travel/Subsistence,OYSTER AUTOTOPUP,22/10/2017,40.00
CHILDREN'S SERVICES,Travel/Subsistence,OYSTER AUTOTOPUP,22/10/2017,20.00
CHILDREN'S SERVICES,Travel/Subsistence,OYSTER AUTOTOPUP,22/10/2017,20.00
CHILDREN'S SERVICES,Travel/Subsistence,OYSTER AUTOTOPUP,22/10/2017,40.00
CHILDREN'S SERVICES,Travel/Subsistence,OYSTER AUTOTOPUP,22/10/2017,40.00
CHILDREN'S SERVICES,Travel/Subsistence,OYSTER AUTOTOPUP,22/10/2017,20.00
CHILDREN'S SERVICES,Travel/Subsistence,OYSTER AUTOTOPUP,22/10/2017,40.00
CHILDREN'S SERVICES,Travel/Subsistence,OYSTER AUTOTOPUP,22/10/2017,20.00
CHILDREN'S SERVICES,Travel/Subsistence,OYSTER BUS AUTOTOP,22/10/2017,40.00
CHILDREN'S SERVICES,Travel/Subsistence,OYSTER BUS AUTOTOP,22/10/2017,40.00
CHILDREN'S SERVICES,Travel/Subsistence,OYSTER BUS AUTOTOP,22/10/2017,20.00
CHILDREN'S SERVICES,Travel/Subsistence,OYSTER BUS AUTOTOP,22/10/2017,20.00
CHILDREN'S SERVICES,Travel/Subsistence,OYSTER BUS AUTOTOP,22/10/2017,40.00
CHILDREN'S SERVICES,Travel/Subsistence,OYSTER BUS AUTOTOP,22/10/2017,20.00
CHILDREN'S SERVICES,Travel/Subsistence,OYSTER BUS AUTOTOP,22/10/2017,20.00
CHILDREN'S SERVICES,Travel/Subsistence,OYSTER BUS AUTOTOP,22/10/2017,40.00
CHILDREN'S SERVICES,Travel/Subsistence,OYSTER BUS AUTOTOP,22/10/2017,20.00
CHILDREN'S SERVICES,Travel/Subsistence,OYSTER BUS AUTOTOP,22/10/2017,20.00
CHILDREN'S SERVICES,Travel/Subsistence,OYSTER BUS AUTOTOP,22/10/2017,20.00
CHILDREN'S SERVICES,Travel/Subsistence,OYSTER RENEW WEB,22/10/2017,20.00
CHILDREN'S SERVICES,Travel/Subsistence,OYSTER RENEW WEB,22/10/2017,25.00
EDUCATION & LEARNING,Domestic Goods-Other,AMAZON EU AMAZON.CO.UK,22/10/2017,1.60
EDUCATION & LEARNING,Education-Library Books,Amazon UK Marketplace,22/10/2017,11.84
EDUCATION & LEARNING,Education-Library Books,Amazon UK Marketplace,22/10/2017,9.30
ADULT SOCIAL CARE,Financial Services,CASH ADVANCE FEE,23/10/2017,5.90
ADULT SOCIAL CARE,Financial Services,COSTCUTTER - TULSE HILL,23/10/2017,200.00
BALANCE SHEET,Personal,Amazon UK Marketplace,23/10/2017,-116.66
CHILDREN'S SERVICES,Catering Food & Drink,MCDONALDS,23/10/2017,5.98
CHILDREN'S SERVICES,Clothing-Children/Adults,FRUUGO,23/10/2017,156.11
CHILDREN'S SERVICES,Facilities-Storage,FAST KEY SERVICES LIMI,23/10/2017,13.23
CHILDREN'S SERVICES,Travel/Subsistence,BRIXTONHILL EXPRESS,23/10/2017,50.00
EDUCATION & LEARNING,Domestic Goods-Other,Amazon UK Marketplace,23/10/2017,0.00
EDUCATION & LEARNING,Education-Other,EB *DOCPERFORM 2 NEW T,23/10/2017,22.39
ENVIRONMENT,Building-Roofing,ACRE LANE BUILDERS,23/10/2017,165.55
ENVIRONMENT,Stationery,AMZ*1st Harrison Ltd,23/10/2017,-30.99
ENVIRONMENT,Stationery,ARGOS LTD,23/10/2017,23.97
ENVIRONMENT,Stationery,Amazon UK Marketplace,23/10/2017,30.99
ENVIRONMENT,Stationery,Amazon UK Marketplace,23/10/2017,44.97
HOUSING SERVICES (HRA),Catering Food & Drink,TESCO STORES 6231,23/10/2017,3.05
ADULT SOCIAL CARE,Catering Food & Drink,ICELAND,24/10/2017,69.43
BALANCE SHEET,Personal,F R JONES & SON,24/10/2017,-5.60
ENVIRONMENT,Building-General,SCREWFIX DIRECT,24/10/2017,24.99
ENVIRONMENT,Horticultural-Other,F R JONES & SON,24/10/2017,32.38
ENVIRONMENT,Works-Construction,LAMBETH INTERNET PAYM,24/10/2017,98.60
FINANCE,Travel/Subsistence,TFL ROAD CHARGE,24/10/2017,11.50
FINANCE,Travel/Subsistence,OYSTER BUS AUTOTOP,24/10/2017,40.00
FINANCE,Travel/Subsistence,OYSTER RENEW WEB,24/10/2017,10.00
ADULT SOCIAL CARE,Financial Services,253/255 SOUTHWARK PARK RO,25/10/2017,400.00
ADULT SOCIAL CARE,Financial Services,CASH ADVANCE FEE,25/10/2017,11.80
ADULT SOCIAL CARE,Financial Services,CASH ADVANCE FEE,25/10/2017,7.38
ADULT SOCIAL CARE,Financial Services,SAINSBURYS CASH,25/10/2017,250.00
BALANCE SHEET,Personal,SCREWFIX,25/10/2017,-5.99
CHILDREN'S SERVICES,Accommodation,Hotel on Booking.com,25/10/2017,427.00
CHILDREN'S SERVICES,Accommodation,Hotel on Booking.com,25/10/2017,90.00
CHILDREN'S SERVICES,Accommodation,PREMIER INN 44536765,25/10/2017,89.99
CHILDREN'S SERVICES,Accommodation,THE ROYAL SEVEN STARS,25/10/2017,90.00
CHILDREN'S SERVICES,Accommodation,THE ROYAL SEVEN STARS,25/10/2017,10.50
CHILDREN'S SERVICES,Catering Food & Drink,TESCO STORE 2143,25/10/2017,108.37
CHILDREN'S SERVICES,Domestic Goods-Other,CURRYS ONLINE,25/10/2017,529.15
CHILDREN'S SERVICES,Domestic Goods-Other,CURRYS ONLINE,25/10/2017,572.95
CHILDREN'S SERVICES,Domestic Goods-Other,MOTHERCARE DIRECT-E-CO,25/10/2017,15.00
CHILDREN'S SERVICES,Domestic Goods-Other,WWW.ARGOS.CO.UK,25/10/2017,153.94
CHILDREN'S SERVICES,Domestic Goods-Other,WWW.ARGOS.CO.UK,25/10/2017,436.94
CHILDREN'S SERVICES,Domestic Goods-Other,WWW.ARGOS.CO.UK,25/10/2017,693.91
CHILDREN'S SERVICES,Domestic Goods-Other,WWW.ARGOS.CO.UK,25/10/2017,299.93
CHILDREN'S SERVICES,Domestic Goods-Other,WWW.ARGOS.CO.UK,25/10/2017,436.94
CHILDREN'S SERVICES,Education-Other,WWW.NDA.AC.UK,25/10/2017,595.00
CHILDREN'S SERVICES,Financial Services,GRO HM PASSPORT OFFICE,25/10/2017,70.20
CHILDREN'S SERVICES,Furniture-Domestic Furniture,IKEA LIMITED,25/10/2017,6.00
CHILDREN'S SERVICES,Travel/Subsistence,BOOKING.COM 1677751063,25/10/2017,-427.00
CHILDREN'S SERVICES,Travel/Subsistence,EASYJET EST1WN7,25/10/2017,109.04
ENVIRONMENT,Building-Timber,SCREWFIX,25/10/2017,24.00
ENVIRONMENT,Building-Tools,SCREWFIX,25/10/2017,27.91
ENVIRONMENT,Building-Tools,SCREWFIX,25/10/2017,131.66
ENVIRONMENT,Works-Construction,LAMBETH INTERNET PAYM,25/10/2017,198.22
FINANCE,Travel/Subsistence,OYSTER AUTOTOPUP,25/10/2017,20.00
HOUSING SERVICES (HRA),Catering Food & Drink,TESCO STORES 5999,25/10/2017,47.27
HOUSING SERVICES (HRA),Taxi Fares,GREYHOUND CARS LTD,25/10/2017,26.68
HOUSING SERVICES (HRA),Taxi Fares,GREYHOUND CARS LTD,25/10/2017,-13.34
HOUSING SERVICES (HRA),Taxi Fares,GREYHOUND CARS LTD,25/10/2017,-13.34
ADULT SOCIAL CARE,Banquet & Catering,WWW.EVENTSUPPLIES.CO.U,26/10/2017,151.75
ADULT SOCIAL CARE,Catering Food & Drink,TESCO STORES 5999,26/10/2017,54.31
ADULT SOCIAL CARE,Domestic Goods-Other,PC WORLD ONLINE,26/10/2017,169.99
BUSINESS & CUSTOMER SERVICES,Catering Food & Drink,TESCO STORES-2143,26/10/2017,6.05
CHILDREN'S SERVICES,Accommodation,CEDAR COURT BRADFORD,26/10/2017,255.00
CHILDREN'S SERVICES,Arts & Leisure Services,CHESSINGTON WORLD,26/10/2017,107.00
CHILDREN'S SERVICES,Domestic Goods-Other,MOTHERCARE DIRECT-E-CO,26/10/2017,86.00
CHILDREN'S SERVICES,Domestic Goods-Other,WWW.ARGOS.CO.UK,26/10/2017,"1,227.47"
CHILDREN'S SERVICES,Domestic Goods-Other,TESCO - SDY LTD,26/10/2017,69.99
CHILDREN'S SERVICES,Facilities-Storage,SAFESTORE LIMITED,26/10/2017,367.47
CHILDREN'S SERVICES,Financial Services,GRO HM PASSPORT OFFICE,26/10/2017,27.75
CHILDREN'S SERVICES,Financial Services,HM PASSPORT OFFICE,26/10/2017,46.00
CHILDREN'S SERVICES,Financial Services,HM PASSPORT OFFICE,26/10/2017,46.00
CHILDREN'S SERVICES,Financial Services,NATIONALITY DIRECTORAT,26/10/2017,973.00
CHILDREN'S SERVICES,Financial Services,THE HOME OFFICE,26/10/2017,"2,297.00"
CHILDREN'S SERVICES,Financial Services,GRO HM PASSPORT OFFICE,26/10/2017,23.40
CHILDREN'S SERVICES,Furniture-Office Furniture,WWW.POSTURITE.CO.UK,26/10/2017,404.31
CHILDREN'S SERVICES,Haulage,HAPPY 2 MOVE LIMIT,26/10/2017,459.00
CHILDREN'S SERVICES,Legal Services-General Support,BINDMANS LLP,26/10/2017,80.00
CHILDREN'S SERVICES,Travel/Subsistence,OYSTER AUTOTOPUP,26/10/2017,40.00
CHILDREN'S SERVICES,Travel/Subsistence,OYSTER AUTOTOPUP,26/10/2017,20.00
CHILDREN'S SERVICES,Travel/Subsistence,OYSTER BUS AUTOTOP,26/10/2017,20.00
CHILDREN'S SERVICES,Travel/Subsistence,OYSTER BUS AUTOTOP,26/10/2017,20.00
CHILDREN'S SERVICES,Travel/Subsistence,OYSTER BUS AUTOTOP,26/10/2017,20.00
CHILDREN'S SERVICES,Travel/Subsistence,OYSTER AUTOTOPUP,26/10/2017,20.00
CHILDREN'S SERVICES,Travel/Subsistence,OYSTER AUTOTOPUP,26/10/2017,20.00
CHILDREN'S SERVICES,Travel/Subsistence,OYSTER BUS AUTOTOP,26/10/2017,20.00
CHILDREN'S SERVICES,Travel/Subsistence,OYSTER BUS AUTOTOP,26/10/2017,20.00
CHILDREN'S SERVICES,Travel/Subsistence,OYSTER RENEW WEB,26/10/2017,20.00
CHILDREN'S SERVICES,Travel/Subsistence,OYSTER RENEW WEB,26/10/2017,-20.00
CHILDREN'S SERVICES,Travel/Subsistence,OYSTER AUTOTOPUP,26/10/2017,20.00
CHILDREN'S SERVICES,Travel/Subsistence,OYSTER BUS AUTOTOP,26/10/2017,20.00
CHILDREN'S SERVICES,Travel/Subsistence,OYSTER RENEW WEB,26/10/2017,20.00
CHILDREN'S SERVICES,Travel/Subsistence,OYSTER BUS AUTOTOP,26/10/2017,40.00
CHILDREN'S SERVICES,Travel/Subsistence,OYSTER BUS AUTOTOP,26/10/2017,20.00
CHILDREN'S SERVICES,Travel/Subsistence,OYSTER RENEW WEB,26/10/2017,25.00
CHILDREN'S SERVICES,Travel/Subsistence,OYSTER AUTOTOPUP,26/10/2017,20.00
CHILDREN'S SERVICES,Travel/Subsistence,OYSTER AUTOTOPUP,26/10/2017,20.00
CHILDREN'S SERVICES,Travel/Subsistence,OYSTER AUTOTOPUP,26/10/2017,20.00
CHILDREN'S SERVICES,Travel/Subsistence,OYSTER BUS AUTOTOP,26/10/2017,20.00
CHILDREN'S SERVICES,Travel/Subsistence,OYSTER RENEW WEB,26/10/2017,30.00
CHILDREN'S SERVICES,Works-Construction,SQ *COMPARE THE MAN AND V,26/10/2017,82.12
CORPORATE AFFAIRS,Stationery,AMAZON SVCS EU-UK AMAZON.,26/10/2017,44.25
POLICY & COMMUNICATIONS,Books/Publications/Resources,EMAP LTD-SUBSCRIPTIONS,26/10/2017,161.00
POLICY & COMMUNICATIONS,Consultancy-Business,FAST KEY SERVICES LIMI,26/10/2017,6.04
POLICY & COMMUNICATIONS,Domestic Goods-Other,Amazon UK Marketplace,26/10/2017,4.96
POLICY & COMMUNICATIONS,Domestic Goods-Other,Amazon UK Marketplace,26/10/2017,8.30
POLICY & COMMUNICATIONS,Facilities-Advertising,FACEBK C48YUCWR62,26/10/2017,40.57
POLICY & COMMUNICATIONS,IT Services,AMAZON MKTPLACE PMTS,26/10/2017,35.23
POLICY & COMMUNICATIONS,IT Services,AMAZON MKTPLACE PMTS,26/10/2017,33.61
POLICY & COMMUNICATIONS,IT Services,123 REG R/T,26/10/2017,14.99
POLICY & COMMUNICATIONS,IT Services,123 REG R/T,26/10/2017,14.99
POLICY & COMMUNICATIONS,IT Services,PANTHEON SYSTEMS INC,26/10/2017,19.45
BUSINESS & CUSTOMER SERVICES,Clothing-Uniforms,AMAZON SVCS EU-UK AMAZON.,27/10/2017,11.48
EDUCATION & LEARNING,Books/Publications/Resources,SAINSBURYS CASH,27/10/2017,160.00
ENVIRONMENT,Mail Services-Postage,POST OFFICE COUNTER,27/10/2017,20.16
FINANCE,Travel/Subsistence,OYSTER AUTOTOPUP,27/10/2017,20.00
FINANCE,Travel/Subsistence,OYSTER AUTOTOPUP,27/10/2017,20.00
FINANCE,Travel/Subsistence,OYSTER BUS AUTOTOP,27/10/2017,20.00
CHILDREN'S SERVICES,Travel/Subsistence,OYSTER BUS AUTOTOP,29/10/2017,40.00
CHILDREN'S SERVICES,Travel/Subsistence,OYSTER BUS AUTOTOP,29/10/2017,20.00
ADULT SOCIAL CARE,Organised Activities,ENFORCEMENT AGENT,30/10/2017,300.00
CHILDREN'S SERVICES,Domestic Goods-Other,WWW.ARGOS.CO.UK,30/10/2017,59.99
EDUCATION & LEARNING,Books/Publications/Resources,CASH ADVANCE FEE,30/10/2017,4.72
ENVIRONMENT,Facilities-Retail,F R JONES & SON,30/10/2017,81.80
FINANCE,Financial Services,LAND REGISTRY,30/10/2017,6.00
FINANCE,Financial Services,LAND REGISTRY,30/10/2017,3.00
FINANCE,Financial Services,LAND REGISTRY,30/10/2017,3.00
FINANCE,Financial Services,LAND REGISTRY,30/10/2017,3.00
FINANCE,Financial Services,LAND REGISTRY,30/10/2017,3.00
FINANCE,Financial Services,LAND REGISTRY,30/10/2017,3.00
FINANCE,Financial Services,LAND REGISTRY,30/10/2017,3.00
"GROWTH, PLANNING & EMPLOYMENT",Books/Publications/Resources,SP BATH PUBLISHING L,30/10/2017,672.00
CHILDREN'S SERVICES,Travel/Subsistence,VIRGIN TRAINS,31/10/2017,101.00
EDUCATION & LEARNING,Education-Other,INSTITUTO CERVANTES LONDO,31/10/2017,60.00
ENVIRONMENT,Books/Publications/Resources,LONDON LETTERBOX MARKE,31/10/2017,98.73
ENVIRONMENT,Building-Timber,SCREWFIX,31/10/2017,106.25
ENVIRONMENT,Overnight Stay < 80,PARK PLAZA CARDIFF,31/10/2017,77.00
ENVIRONMENT,Stationery,ARGOS,31/10/2017,13.50
ENVIRONMENT,Use of Public Transport,TRAINLINE,31/10/2017,104.45
HOUSING SERVICES,Domestic Goods-Other,ARGOS,31/10/2017,29.99
POLICY & COMMUNICATIONS,IT Services,FACEBK G3SSCDNR62,31/10/2017,27.81
ADULT SOCIAL CARE,Travel/Subsistence,OYSTER BUS AUTOTOP,01/11/2017,20.00
CHILDREN'S SERVICES,Books/Publications/Resources,KIDDICARE,01/11/2017,179.99
CHILDREN'S SERVICES,Facilities-Printing,WWW.MULITCOLOUR.INFO,01/11/2017,205.44
EDUCATION & LEARNING,Domestic Goods-Other,ARGOS RETAIL GROUP,01/11/2017,7.20
EDUCATION & LEARNING,Domestic Goods-Other,ARGOS RETAIL GROUP,01/11/2017,-7.20
ENVIRONMENT,Horticultural-Other,SCREWFIX DIRECT,01/11/2017,66.63
FINANCE,Catering Food & Drink,TESCO STORES 5342,01/11/2017,6.00
FINANCE,Domestic Goods-Other,WWW.ARGOS.CO.UK,01/11/2017,193.94
FINANCE,Domestic Goods-Other,WWW.ARGOS.CO.UK,01/11/2017,224.99
FINANCE,Travel/Subsistence,OYSTER AUTOTOPUP,01/11/2017,20.00
FINANCE,Use of Public Transport,MORDEN NEWS,01/11/2017,50.00
"GROWTH, PLANNING & EMPLOYMENT",Catering Food & Drink,TESCO STORES 5342,01/11/2017,4.40
HOUSING SERVICES (HRA),Use of Public Transport,BELLS NEWS,01/11/2017,50.50
HUMAN RESOURCES & ORGANISATIONAL DEVELOPMENT,Education-Library Books,AMAZON SVCS EU-UK AMAZON.,01/11/2017,40.34
HUMAN RESOURCES & ORGANISATIONAL DEVELOPMENT,Education-Library Books,AMAZON SVCS EU-UK AMAZON.,01/11/2017,261.80
HUMAN RESOURCES & ORGANISATIONAL DEVELOPMENT,Education-Library Books,Amazon UK Marketplace,01/11/2017,29.77
HUMAN RESOURCES & ORGANISATIONAL DEVELOPMENT,Financial Services,UKBA7643921505,01/11/2017,"3,199.00"
POLICY & COMMUNICATIONS,IT Services,3DNA CORP DBA NATIONBU,01/11/2017,170.30
POLICY & COMMUNICATIONS,IT Services,NATIONBUILDER,01/11/2017,168.89
POLICY & COMMUNICATIONS,IT Services,NATIONBUILDER,01/11/2017,69.31
ADULT SOCIAL CARE,Catering Food & Drink,TESCO STORE 2764,02/11/2017,5.00
ADULT SOCIAL CARE,Catering Food & Drink,TESCO STORE 2764,02/11/2017,149.22
BUSINESS & CUSTOMER SERVICES,Books/Publications/Resources,1 4 C PUBLICITY LT,02/11/2017,231.28
CHILDREN'S SERVICES,Education-Library Books,AMAZON.CO.UK,02/11/2017,27.98
CHILDREN'S SERVICES,Education-Library Books,Amazon UK Marketplace,02/11/2017,11.98
CHILDREN'S SERVICES,Travel/Subsistence,OYSTER AUTOTOPUP,02/11/2017,20.00
CHILDREN'S SERVICES,Travel/Subsistence,OYSTER BUS AUTOTOP,02/11/2017,40.00
CHILDREN'S SERVICES,Travel/Subsistence,TRAINLINE,02/11/2017,72.00
CHILDREN'S SERVICES,Travel/Subsistence,OYSTER BUS AUTOTOP,02/11/2017,20.00
CHILDREN'S SERVICES,Travel/Subsistence,OYSTER BUS AUTOTOP,02/11/2017,40.00
CHILDREN'S SERVICES,Travel/Subsistence,OYSTER AUTOTOPUP,02/11/2017,40.00
CHILDREN'S SERVICES,Travel/Subsistence,OYSTER AUTOTOPUP,02/11/2017,80.00
CHILDREN'S SERVICES,Travel/Subsistence,OYSTER AUTOTOPUP,02/11/2017,40.00
CHILDREN'S SERVICES,Travel/Subsistence,OYSTER AUTOTOPUP,02/11/2017,40.00
CHILDREN'S SERVICES,Travel/Subsistence,OYSTER AUTOTOPUP,02/11/2017,40.00
CHILDREN'S SERVICES,Travel/Subsistence,OYSTER AUTOTOPUP,02/11/2017,40.00
CHILDREN'S SERVICES,Travel/Subsistence,OYSTER AUTOTOPUP,02/11/2017,40.00
CHILDREN'S SERVICES,Travel/Subsistence,OYSTER AUTOTOPUP,02/11/2017,40.00
CHILDREN'S SERVICES,Travel/Subsistence,OYSTER AUTOTOPUP,02/11/2017,40.00
CHILDREN'S SERVICES,Travel/Subsistence,OYSTER AUTOTOPUP,02/11/2017,40.00
CHILDREN'S SERVICES,Travel/Subsistence,OYSTER BUS AUTOTOP,02/11/2017,40.00
CHILDREN'S SERVICES,Travel/Subsistence,OYSTER BUS AUTOTOP,02/11/2017,40.00
CHILDREN'S SERVICES,Travel/Subsistence,OYSTER BUS AUTOTOP,02/11/2017,40.00
CHILDREN'S SERVICES,Travel/Subsistence,OYSTER BUS AUTOTOP,02/11/2017,40.00
CHILDREN'S SERVICES,Travel/Subsistence,OYSTER BUS AUTOTOP,02/11/2017,40.00
CHILDREN'S SERVICES,Travel/Subsistence,OYSTER BUS AUTOTOP,02/11/2017,40.00
CHILDREN'S SERVICES,Travel/Subsistence,TRAINLINE,02/11/2017,352.92
CHILDREN'S SERVICES,Travel/Subsistence,TRAINLINE,02/11/2017,274.67
CHILDREN'S SERVICES,Travel/Subsistence,TRAINLINE,02/11/2017,170.96
CHILDREN'S SERVICES,Travel/Subsistence,TRAINLINE,02/11/2017,25.82
CHILDREN'S SERVICES,Travel/Subsistence,TRAINLINE,02/11/2017,33.81
CHILDREN'S SERVICES,Travel/Subsistence,TRAINLINE,02/11/2017,217.91
CHILDREN'S SERVICES,Travel/Subsistence,TRAINLINE,02/11/2017,33.81
CHILDREN'S SERVICES,Travel/Subsistence,TRAINLINE,02/11/2017,56.26
CORPORATE AFFAIRS,Legal Services-General Support,LAW SOCIETY FINANC,02/11/2017,499.00
CORPORATE AFFAIRS,Legal Services-General Support,PAYPAL *1KBW,02/11/2017,95.00
CORPORATE AFFAIRS,Legal Services-General Support,PAYPAL *1KBW,02/11/2017,95.00
CORPORATE AFFAIRS,Legal Services-General Support,WWW.THEBARCOUNCIL.SYNO,02/11/2017,80.00
CORPORATE AFFAIRS,Travel/Subsistence,LUL TICKET MACHINE,02/11/2017,50.00
EDUCATION & LEARNING,Catering Food & Drink,MARKS&SPENCER PLC,02/11/2017,25.00
EDUCATION & LEARNING,Catering Food & Drink,SAINSBURY'S SMKT,02/11/2017,100.00
EDUCATION & LEARNING,Catering Food & Drink,SAINSBURYS S/MKTS,02/11/2017,6.74
EDUCATION & LEARNING,Catering Food & Drink,SAINSBURYS S/MKTS,02/11/2017,3.39
EDUCATION & LEARNING,Catering Food & Drink,SAINSBURYS S/MKTS,02/11/2017,2.85
EDUCATION & LEARNING,Domestic Goods-Other,AMAZON EU AMAZON.CO.UK,02/11/2017,12.81
EDUCATION & LEARNING,Domestic Goods-Other,AMAZON EU AMAZON.CO.UK,02/11/2017,7.83
EDUCATION & LEARNING,Education-Library Books,AMAZON EU AMAZON.CO.UK,02/11/2017,30.29
EDUCATION & LEARNING,Education-Library Books,AMAZON EU AMAZON.CO.UK,02/11/2017,16.23
EDUCATION & LEARNING,Education-Library Books,AMAZON SVCS EU-UK AMAZON.,02/11/2017,18.36
EDUCATION & LEARNING,Education-Library Books,AMAZON SVCS EU-UK AMAZON.,02/11/2017,71.10
EDUCATION & LEARNING,Education-Library Books,AMAZON SVCS EU-UK AMAZON.,02/11/2017,8.81
EDUCATION & LEARNING,Travel/Subsistence,OYSTER AUTOTOPUP,02/11/2017,20.00
ENVIRONMENT,Horticultural-Other,SCREWFIX DIRECT,02/11/2017,46.64
ENVIRONMENT,Horticultural-Other,F R JONES & SON,02/11/2017,33.50
ENVIRONMENT,Works-Construction,KK WINDOWS,02/11/2017,66.00
FINANCE,Travel/Subsistence,OYSTER AUTOTOPUP,02/11/2017,20.00
FINANCE,Travel/Subsistence,OYSTER AUTOTOPUP,02/11/2017,20.00
FINANCE,Travel/Subsistence,OYSTER BUS AUTOTOP,02/11/2017,20.00
FINANCE,Travel/Subsistence,OYSTER BUS AUTOTOP,02/11/2017,20.00
HOUSING SERVICES (HRA),Domestic Goods-Other,FASTER PAYMENT RECEIVED,02/11/2017,-10.25
ADULT SOCIAL CARE,Catering Food & Drink,ICELAND,03/11/2017,138.93
ADULT SOCIAL CARE,Financial Services,CASH ADVANCE FEE,03/11/2017,2.95
ADULT SOCIAL CARE,Financial Services,SANTANDER PLC (UK),03/11/2017,80.00
ADULT SOCIAL CARE,Legal Services-Other,HMCOURTS-SERVICE.G,03/11/2017,225.00
ADULT SOCIAL CARE,Travel/Subsistence,LONDON & SOUTH EAS,03/11/2017,164.00
ADULT SOCIAL CARE,Travel/Subsistence,OYSTER AUTOTOPUP,03/11/2017,20.00
ADULT SOCIAL CARE,Travel/Subsistence,OYSTER AUTOTOPUP,03/11/2017,20.00
ADULT SOCIAL CARE,Travel/Subsistence,OYSTER BUS AUTOTOP,03/11/2017,20.00
BUSINESS & CUSTOMER SERVICES,Legal Services-Other,HMCOURTS-SERVICE.G,03/11/2017,"4,602.00"
CHILDREN'S SERVICES,Financial Services,GRO HM PASSPORT OFFICE,03/11/2017,46.80
CHILDREN'S SERVICES,Financial Services,HM PASSPORT OFFICE,03/11/2017,72.50
CHILDREN'S SERVICES,Furniture-Domestic Furniture,IKEA ONLINE,03/11/2017,"1,364.00"
CHILDREN'S SERVICES,Travel/Subsistence,FASTER PAYMENT RECEIVED,03/11/2017,-4.48
ENVIRONMENT,Building-Paint,S LONDON DECORTORS,03/11/2017,59.39
ENVIRONMENT,Building-Timber,SCREWFIX,03/11/2017,21.23
ENVIRONMENT,Consultancy-Business,FORTRESS MASTER LOCKSMITH,03/11/2017,5.83
ENVIRONMENT,Building-Timber,HOMEBASE LTD 313,06/11/2017,11.84
ENVIRONMENT,Domestic Goods-Other,MACHINE MART LTD,06/11/2017,34.44
HOUSING SERVICES (HRA),Books/Publications/Resources,MARKS&SPENCER PLC,06/11/2017,35.00
HUMAN RESOURCES & ORGANISATIONAL DEVELOPMENT,Education-Library Books,AMAZON SVCS EU-UK AMAZON.,06/11/2017,-233.80
ADULT SOCIAL CARE,Accommodation,FIR TREE COUNTRY HOTEL,07/11/2017,220.00
ADULT SOCIAL CARE,Travel/Subsistence,TRAINLINE,07/11/2017,519.69
CHILDREN'S SERVICES,Travel/Subsistence,OYSTER RENEW WEB,07/11/2017,25.00
CHILDREN'S SERVICES,Travel/Subsistence,OYSTER RENEW WEB,07/11/2017,30.00
CHILDREN'S SERVICES,Travel/Subsistence,OYSTER RENEW WEB,07/11/2017,30.00
CHILDREN'S SERVICES,Travel/Subsistence,OYSTER RENEW WEB,07/11/2017,30.00
CHILDREN'S SERVICES,Travel/Subsistence,OYSTER RENEW WEB,07/11/2017,20.00
CHILDREN'S SERVICES,Travel/Subsistence,OYSTER RENEW WEB,07/11/2017,30.00
CHILDREN'S SERVICES,Travel/Subsistence,OYSTER RENEW WEB,07/11/2017,60.00
CHILDREN'S SERVICES,Travel/Subsistence,OYSTER RENEW WEB,07/11/2017,30.00
CHILDREN'S SERVICES,Travel/Subsistence,OYSTER RENEW WEB,07/11/2017,60.00
CHILDREN'S SERVICES,Travel/Subsistence,OYSTER RENEW WEB,07/11/2017,90.00
EDUCATION & LEARNING,Domestic Goods-Other,ARGOS LTD,07/11/2017,17.96
ADULT SOCIAL CARE,Travel/Subsistence,OYSTER AUTOTOPUP,08/11/2017,20.00
ADULT SOCIAL CARE,Travel/Subsistence,OYSTER BUS AUTOTOP,08/11/2017,20.00
BUSINESS TRANSFORMATION,IT Consumables,MSFT *<E07004D3ME>,08/11/2017,7.13
BUSINESS TRANSFORMATION,IT Consumables,MSFT *<E07004IWBP>,08/11/2017,7.44
BUSINESS TRANSFORMATION,IT Consumables,MSFT *<E07004OV6G>,08/11/2017,7.39
BUSINESS TRANSFORMATION,IT Hardware,Amazon UK Marketplace,08/11/2017,70.88
BUSINESS TRANSFORMATION,IT Hardware,Amazon UK Marketplace,08/11/2017,25.59
BUSINESS TRANSFORMATION,IT Software,WWW.ORDNANCESURVEY.CO.,08/11/2017,195.00
CHILDREN'S SERVICES,Catering Food & Drink,HOPE & ANCHOR,08/11/2017,41.67
CHILDREN'S SERVICES,Facilities-Design & Photography,RICHARDS PHOTOPRINT,08/11/2017,73.75
CHILDREN'S SERVICES,Facilities-Storage,KATOR STORAGE LTD,08/11/2017,253.28
CHILDREN'S SERVICES,Financial Services,NATWEST BANK /,08/11/2017,430.00
CHILDREN'S SERVICES,Financial Services,GRO HM PASSPORT OFFICE,08/11/2017,18.50
CHILDREN'S SERVICES,Financial Services,GRO HM PASSPORT OFFICE,08/11/2017,29.85
CHILDREN'S SERVICES,Financial Services-Grants,CORAM ACADEMY LTD,08/11/2017,107.20
CHILDREN'S SERVICES,Haulage,HAPPY 2 MOVE LIMIT,08/11/2017,163.20
CHILDREN'S SERVICES,Mail Services-Postage,THE POST OFFICE,08/11/2017,210.00
CHILDREN'S SERVICES,Travel/Subsistence,CASH ADVANCE FEE,08/11/2017,12.69
CHILDREN'S SERVICES,Travel/Subsistence,BRIXTONHILL EXPRESS,08/11/2017,150.00
EDUCATION & LEARNING,Domestic Goods-Other,GIFTVOUCHERSHOP.CO.UK,08/11/2017,"1,025.50"
EDUCATION & LEARNING,Domestic Goods-Other,WWW.ARGOS.CO.UK,08/11/2017,39.99
EDUCATION & LEARNING,Education-Library Books,AMAZON SVCS EU-UK AMAZON.,08/11/2017,25.84
EDUCATION & LEARNING,Facilities-Market Research,AMAZON UK PRIME AMZN.CO.U,08/11/2017,79.00
EDUCATION & LEARNING,Facilities-Market Research,SURVEYMONKEY.COM,08/11/2017,280.00
EDUCATION & LEARNING,Taxi Fares,WWW.ADDISONLEE.COM,08/11/2017,15.70
EDUCATION & LEARNING,Taxi Fares,WWW.ADDISONLEE.COM,08/11/2017,15.55
EDUCATION & LEARNING,Taxi Fares,WWW.ADDISONLEE.COM,08/11/2017,18.22
EDUCATION & LEARNING,Taxi Fares,WWW.ADDISONLEE.COM,08/11/2017,23.22
EDUCATION & LEARNING,Travel/Subsistence,OYSTER AUTOTOPUP,08/11/2017,20.00
EDUCATION & LEARNING,Travel/Subsistence,OYSTER AUTOTOPUP,08/11/2017,20.00
EDUCATION & LEARNING,Travel/Subsistence,OYSTER AUTOTOPUP,08/11/2017,20.00
EDUCATION & LEARNING,Travel/Subsistence,OYSTER AUTOTOPUP,08/11/2017,20.00
EDUCATION & LEARNING,Travel/Subsistence,OYSTER AUTOTOPUP,08/11/2017,20.00
EDUCATION & LEARNING,Travel/Subsistence,OYSTER AUTOTOPUP,08/11/2017,20.00
EDUCATION & LEARNING,Travel/Subsistence,OYSTER BUS AUTOTOP,08/11/2017,20.00
EDUCATION & LEARNING,Travel/Subsistence,OYSTER BUS AUTOTOP,08/11/2017,20.00
EDUCATION & LEARNING,Travel/Subsistence,OYSTER BUS AUTOTOP,08/11/2017,20.00
EDUCATION & LEARNING,Travel/Subsistence,OYSTER BUS AUTOTOP,08/11/2017,40.00
ENVIRONMENT,Clothing-Other,AMAZON SVCS EU-UK AMAZON.,08/11/2017,16.95
ENVIRONMENT,Clothing-Other,AMAZON SVCS EU-UK AMAZON.,08/11/2017,16.95
ENVIRONMENT,Vehicle Maintenance,DVLA VEHICLE TAX,08/11/2017,32.50
ADULT SOCIAL CARE,Catering Food & Drink,TESCO STORES 5999,09/11/2017,72.16
ADULT SOCIAL CARE,Education-Library Books,Amazon UK Marketplace,09/11/2017,64.71
ADULT SOCIAL CARE,Financial Services,CASH ADVANCE FEE,09/11/2017,7.38
ADULT SOCIAL CARE,Financial Services,NATWEST BANK /,09/11/2017,250.00
ADULT SOCIAL CARE,Travel/Subsistence,OYSTER BUS AUTOTOP,09/11/2017,20.00
BUSINESS & CUSTOMER SERVICES,Catering Food & Drink,TESCO STORE 2143,09/11/2017,10.00
BUSINESS & CUSTOMER SERVICES,Travel/Subsistence,OYSTER AUTOTOPUP,09/11/2017,40.00
BUSINESS & CUSTOMER SERVICES,Travel/Subsistence,OYSTER AUTOTOPUP,09/11/2017,40.00
BUSINESS & CUSTOMER SERVICES,Travel/Subsistence,OYSTER AUTOTOPUP,09/11/2017,40.00
BUSINESS & CUSTOMER SERVICES,Travel/Subsistence,OYSTER AUTOTOPUP,09/11/2017,80.00
BUSINESS & CUSTOMER SERVICES,Travel/Subsistence,TRAINLINE,09/11/2017,115.97
BUSINESS & CUSTOMER SERVICES,Travel/Subsistence,TRAINLINE,09/11/2017,106.28
BUSINESS & CUSTOMER SERVICES,Travel/Subsistence,ZIPCAR,09/11/2017,118.80
BUSINESS & CUSTOMER SERVICES,Travel/Subsistence,ZIPCAR,09/11/2017,-118.80
CHILDREN'S SERVICES,Books/Publications/Resources,LOVE2SHOP.CO.UK,09/11/2017,153.50
CHILDREN'S SERVICES,Domestic Goods-Other,ARGOS,09/11/2017,71.97
CHILDREN'S SERVICES,Financial Services,LAMBETH INTERNET PAYM,09/11/2017,12.20
CHILDREN'S SERVICES,Financial Services,GRO HM PASSPORT OFFICE,09/11/2017,0.00
CHILDREN'S SERVICES,Financial Services,GRO HM PASSPORT OFFICE,09/11/2017,23.40
CHILDREN'S SERVICES,Financial Services,METROPOLITAN PC,09/11/2017,82.00
CHILDREN'S SERVICES,Financial Services-Grants,ALLPAY MOTO (CALLPAY/I,09/11/2017,128.85
CHILDREN'S SERVICES,Furniture-Domestic Furniture,PAYPAL *SLF24 LTD.,09/11/2017,368.00
CHILDREN'S SERVICES,Mail Services-Postage,THE POST OFFICE,09/11/2017,8.55
CHILDREN'S SERVICES,Taxi Fares,ABEX524A6 LONDON NET C,09/11/2017,37.24
CHILDREN'S SERVICES,Taxi Fares,WWWLONDONNETCARSCOU,09/11/2017,32.00
CHILDREN'S SERVICES,Taxi Fares,WWWLONDONNETCARSCOU,09/11/2017,56.00
CHILDREN'S SERVICES,Travel/Subsistence,OYSTER AUTOTOPUP,09/11/2017,20.00
CHILDREN'S SERVICES,Travel/Subsistence,OYSTER RENEW WEB,09/11/2017,20.00
CHILDREN'S SERVICES,Travel/Subsistence,OYSTER BUS AUTOTOP,09/11/2017,20.00
CHILDREN'S SERVICES,Travel/Subsistence,OYSTER AUTOTOPUP,09/11/2017,20.00
CHILDREN'S SERVICES,Travel/Subsistence,TRAINLINE,09/11/2017,180.03
EDUCATION & LEARNING,Education-Library Books,AMAZON EU AMAZON.CO.UK,09/11/2017,45.36
EDUCATION & LEARNING,Education-Library Books,AMAZON EU AMAZON.CO.UK,09/11/2017,10.98
EDUCATION & LEARNING,Education-Library Books,AMAZON SVCS EU-UK AMAZON.,09/11/2017,9.98
EDUCATION & LEARNING,Education-Library Books,Amazon UK Marketplace,09/11/2017,28.55
EDUCATION & LEARNING,Education-Library Books,Amazon UK Marketplace,09/11/2017,5.37
EDUCATION & LEARNING,Education-Library Books,Amazon UK Marketplace,09/11/2017,7.29
EDUCATION & LEARNING,Education-Library Books,Amazon UK Marketplace,09/11/2017,3.41
EDUCATION & LEARNING,Education-Other,HUMANWARE LTD,09/11/2017,150.00
EDUCATION & LEARNING,IT Hardware,MAPLIN STREATHAM SW16,09/11/2017,29.99
ENVIRONMENT,Consultancy-Business,FORTRESS MASTER LOCKSMITH,09/11/2017,37.08
ENVIRONMENT,Education-Library Books,STATIONERY OFFICE BOOK,09/11/2017,60.00
FINANCE,Travel/Subsistence,OYSTER BUS AUTOTOP,09/11/2017,20.00
ADULT SOCIAL CARE,Catering Food & Drink,ICELAND,10/11/2017,134.56
CHILDREN'S SERVICES,Facilities-Storage,SAFESTORE LIMITED,10/11/2017,120.57
EDUCATION & LEARNING,Stationery,Amazon UK Marketplace,10/11/2017,16.52
HOUSING SERVICES (HRA),Catering Food & Drink,PORTERS SANDWICH,10/11/2017,165.00
HOUSING SERVICES (HRA),Catering Food & Drink,TESCO STORES 5999,10/11/2017,32.58
HOUSING SERVICES (HRA),Domestic Goods-Other,TESCO DIRECT,10/11/2017,152.46
HOUSING SERVICES (HRA),Education-Library Books,AMAZON SVCS EU-UK AMAZON.,10/11/2017,66.66
FINANCE,Books/Publications/Resources,Amazon UK Retail,11/11/2017,49.99
ADULT SOCIAL CARE,Travel/Subsistence,OYSTER BUS AUTOTOP,12/11/2017,20.00
ADULT SOCIAL CARE,Catering Food & Drink,TESCO STORES 5999,13/11/2017,85.95
ENVIRONMENT,Conference Expenses,LBHACKNEY PYMT,13/11/2017,182.00
"GROWTH, PLANNING & EMPLOYMENT",Public Transport,LUL TICKET MACHINE,13/11/2017,60.00
HOUSING SERVICES (HRA),Domestic Goods-Commercial,AMAZON SVCS EU-UK AMAZON.,13/11/2017,27.98
ADULT SOCIAL CARE,Financial Services,CASH ADVANCE FEE,14/11/2017,7.38
ADULT SOCIAL CARE,Financial Services,SAINSBURYS CASH,14/11/2017,250.00
ADULT SOCIAL CARE,Works-Construction,PROWASTE,14/11/2017,312.00
CHILDREN'S SERVICES,Building-Floors,ELEPHANT DISCOUNT FLOO,14/11/2017,920.00
CHILDREN'S SERVICES,Domestic Goods-Other,WWW.ARGOS.CO.UK,14/11/2017,159.99
CHILDREN'S SERVICES,Education-Other,HARLOW COLLEGE,14/11/2017,50.00
CHILDREN'S SERVICES,Travel/Subsistence,BRITISH A 1258764757167,14/11/2017,252.60
EDUCATION & LEARNING,Books/Publications/Resources,NATIONWIDE /W0278Z,14/11/2017,170.00
EDUCATION & LEARNING,Furniture-Domestic Furniture,IKEA ONLINE,14/11/2017,47.50
FINANCE,Domestic Goods-Other,WWW.ARGOS.CO.UK,14/11/2017,304.99
FINANCE,Domestic Goods-Other,WWW.ARGOS.CO.UK,14/11/2017,"1,283.82"
FINANCE,Use of Public Transport,LUL TICKET MACHINE,14/11/2017,30.00
HUMAN RESOURCES & ORGANISATIONAL DEVELOPMENT,Education-Library Books,Amazon UK Marketplace,14/11/2017,213.40
ADULT SOCIAL CARE,Financial Services,CASH ADVANCE FEE,15/11/2017,11.80
ADULT SOCIAL CARE,Financial Services,ROYAL BANK UK /,15/11/2017,400.00
CHILDREN'S SERVICES,Consultancy-Business,ARMOUR LOCK AND SAFE,15/11/2017,10.00
CHILDREN'S SERVICES,Professional & Advisory Services,COMPARE THE MAN AND VA,15/11/2017,118.71
CHILDREN'S SERVICES,Travel/Subsistence,OYSTER RENEW WEB,15/11/2017,-20.00
CHILDREN'S SERVICES,Travel/Subsistence,OYSTER RENEW WEB,15/11/2017,20.00
CHILDREN'S SERVICES,Travel/Subsistence,OYSTER RENEW WEB,15/11/2017,30.00
CHILDREN'S SERVICES,Travel/Subsistence,OYSTER RENEW WEB,15/11/2017,-30.00
CHILDREN'S SERVICES,Travel/Subsistence,OYSTER RENEW WEB,15/11/2017,0.00
CHILDREN'S SERVICES,Travel/Subsistence,OYSTER RENEW WEB,15/11/2017,30.00
CHILDREN'S SERVICES,Travel/Subsistence,OYSTER RENEW WEB,15/11/2017,60.00
CHILDREN'S SERVICES,Travel/Subsistence,BRIXTONHILL EXPRESS,15/11/2017,110.00
EDUCATION & LEARNING,Books/Publications/Resources,CASH ADVANCE FEE,15/11/2017,5.02
ENVIRONMENT,Building-General,SENATOR DEVELOPMEN,15/11/2017,35.81
ENVIRONMENT,Building-Timber,ACRE LANE BUILDERS,15/11/2017,66.67
FINANCE,Use of Public Transport,LUL TICKET MACHINE,15/11/2017,30.00
ADULT SOCIAL CARE,Legal Services-Other,HMCOURTS-SERVICE.G,16/11/2017,150.00
ADULT SOCIAL CARE,Legal Services-Other,HMCOURTS-SERVICE.G,16/11/2017,150.00
ADULT SOCIAL CARE,Legal Services-Other,HMCOURTS-SERVICE.G,16/11/2017,225.00
ADULT SOCIAL CARE,Legal Services-Other,HMCOURTS-SERVICE.G,16/11/2017,75.00
ADULT SOCIAL CARE,Legal Services-Other,HMCOURTS-SERVICE.G,16/11/2017,75.00
ADULT SOCIAL CARE,Legal Services-Other,HMCOURTS-SERVICE.G,16/11/2017,75.00
ADULT SOCIAL CARE,Legal Services-Other,HMCOURTS-SERVICE.G,16/11/2017,375.00
ADULT SOCIAL CARE,Legal Services-Other,HMCOURTS-SERVICE.G,16/11/2017,300.00
CHILDREN'S SERVICES,Financial Services,GRO HM PASSPORT OFFICE,16/11/2017,-27.75
CHILDREN'S SERVICES,Financial Services,HM PASSPORT OFFICE,16/11/2017,46.00
CHILDREN'S SERVICES,Financial Services,HM PASSPORT OFFICE,16/11/2017,118.50
CHILDREN'S SERVICES,Financial Services,L B CAMDEN INT,16/11/2017,11.00
CHILDREN'S SERVICES,Financial Services,GRO HM PASSPORT OFFICE,16/11/2017,27.75
CHILDREN'S SERVICES,Financial Services,HM PASSPORT OFFICE,16/11/2017,72.50
CHILDREN'S SERVICES,Travel/Subsistence,OYSTER AUTOSETTLE,16/11/2017,60.00
CHILDREN'S SERVICES,Travel/Subsistence,OYSTER AUTOTOPUP,16/11/2017,20.00
CHILDREN'S SERVICES,Travel/Subsistence,OYSTER AUTOTOPUP,16/11/2017,20.00
CHILDREN'S SERVICES,Travel/Subsistence,OYSTER BUS AUTOSET,16/11/2017,80.00
CORPORATE AFFAIRS,Legal Services-General Support,PAYPAL *1KBW,16/11/2017,95.00
CORPORATE AFFAIRS,Legal Services-General Support,SURVEYMONKEY.COM,16/11/2017,336.00
CORPORATE AFFAIRS,Legal Services-General Support,SURVEYMONKEY.COM,16/11/2017,-336.00
CORPORATE AFFAIRS,Legal Services-General Support,WWW.THELAWSOCIETY.ORG,16/11/2017,318.00
CORPORATE AFFAIRS,Stationery,AMAZON SVCS EU-UK AMAZON.,16/11/2017,53.91
CORPORATE AFFAIRS,Stationery,AMAZON SVCS EU-UK AMAZON.,16/11/2017,50.49
CORPORATE AFFAIRS,Travel/Subsistence,OYSTER RENEW WEB,16/11/2017,50.00
EDUCATION & LEARNING,Books/Publications/Resources,AMAZON SVCS EU-UK AMAZON.,16/11/2017,33.20
EDUCATION & LEARNING,Books/Publications/Resources,STATIONERY OFFICE BOOK,16/11/2017,15.00
EDUCATION & LEARNING,Education-Library Books,AMAZON EU AMAZON.CO.UK,16/11/2017,7.99
EDUCATION & LEARNING,Education-Library Books,AMAZON SVCS EU-UK AMAZON.,16/11/2017,7.92
EDUCATION & LEARNING,Education-Library Books,AMAZON SVCS EU-UK AMAZON.,16/11/2017,16.80
EDUCATION & LEARNING,Education-Library Books,Amazon UK Marketplace,16/11/2017,9.75
EDUCATION & LEARNING,Education-Library Books,Amazon UK Marketplace,16/11/2017,2.81
ENVIRONMENT,Building-Roofing,ACRE LANE TIMBER LTD,16/11/2017,104.18
ENVIRONMENT,Building-Timber,ACRE LANE TIMBER LTD,16/11/2017,7.27
ENVIRONMENT,Building-Tools,ACRE LANE BUILDERS,16/11/2017,200.00
ENVIRONMENT,Building-Tools,ACRE LANE BUILDERS,16/11/2017,96.64
ENVIRONMENT,Cycles Purchase,HALFORDS 0716,16/11/2017,2.92
FINANCE,Travel/Subsistence,OYSTER AUTOTOPUP,16/11/2017,20.00
"GROWTH, PLANNING & EMPLOYMENT",Books/Publications/Resources,H&M,16/11/2017,60.00
"GROWTH, PLANNING & EMPLOYMENT",Books/Publications/Resources,H&M,16/11/2017,242.01
"GROWTH, PLANNING & EMPLOYMENT",Books/Publications/Resources,H&M,16/11/2017,65.03
"GROWTH, PLANNING & EMPLOYMENT",Books/Publications/Resources,H&M,16/11/2017,60.00
"GROWTH, PLANNING & EMPLOYMENT",Books/Publications/Resources,THE KNIFE SHED / KATAB,16/11/2017,45.00
"GROWTH, PLANNING & EMPLOYMENT",Books/Publications/Resources,TYMUSIC,16/11/2017,205.09
"GROWTH, PLANNING & EMPLOYMENT",Subsistence: Lunch Allowance,GREGGS,16/11/2017,3.00
"GROWTH, PLANNING & EMPLOYMENT",Use of Public Transport,BRIX CENTRAL STOP,16/11/2017,31.20
"GROWTH, PLANNING & EMPLOYMENT",Use of Public Transport,BRIX CENTRAL STOP,16/11/2017,21.20
"GROWTH, PLANNING & EMPLOYMENT",Use of Public Transport,BRIX CENTRAL STOP,16/11/2017,128.10
"GROWTH, PLANNING & EMPLOYMENT",Use of Public Transport,BRIX CENTRAL STOP,16/11/2017,15.00
"GROWTH, PLANNING & EMPLOYMENT",Use of Public Transport,BRIX CENTRAL STOP,16/11/2017,21.20
"GROWTH, PLANNING & EMPLOYMENT",Use of Public Transport,BRIX CENTRAL STOP,16/11/2017,213.30
"GROWTH, PLANNING & EMPLOYMENT",Use of Public Transport,BRIX CENTRAL STOP,16/11/2017,21.20
"GROWTH, PLANNING & EMPLOYMENT",Use of Public Transport,BRIX CENTRAL STOP,16/11/2017,10.60
"GROWTH, PLANNING & EMPLOYMENT",Use of Public Transport,BRIX CENTRAL STOP,16/11/2017,81.70
"GROWTH, PLANNING & EMPLOYMENT",Use of Public Transport,BRIX CENTRAL STOP,16/11/2017,148.70
"GROWTH, PLANNING & EMPLOYMENT",Use of Public Transport,BRIX CENTRAL STOP,16/11/2017,126.80
"GROWTH, PLANNING & EMPLOYMENT",Use of Public Transport,H&M,16/11/2017,88.01
"GROWTH, PLANNING & EMPLOYMENT",Use of Public Transport,LUL TICKET MACHINE,16/11/2017,10.00
"GROWTH, PLANNING & EMPLOYMENT",Use of Public Transport,LUL TICKET MACHINE,16/11/2017,47.30
"GROWTH, PLANNING & EMPLOYMENT",Use of Public Transport,LUL TICKET MACHINE,16/11/2017,47.30
"GROWTH, PLANNING & EMPLOYMENT",Use of Public Transport,LUL TICKET MACHINE,16/11/2017,16.50
"GROWTH, PLANNING & EMPLOYMENT",Use of Public Transport,LUL TICKET MACHINE,16/11/2017,10.00
"GROWTH, PLANNING & EMPLOYMENT",Use of Public Transport,LUL TICKET MACHINE,16/11/2017,33.00
"GROWTH, PLANNING & EMPLOYMENT",Use of Public Transport,OYSTER RENEW WEB,16/11/2017,215.90
"GROWTH, PLANNING & EMPLOYMENT",Use of Public Transport,OYSTER RENEW WEB,16/11/2017,215.90
"GROWTH, PLANNING & EMPLOYMENT",Use of Public Transport,OYSTER RENEW WEB,16/11/2017,81.50
POLICY & COMMUNICATIONS,Catering Food & Drink,THE CLINK CHARITY,16/11/2017,300.00
POLICY & COMMUNICATIONS,IT Services,HOO*Hootsuite Media Inc.,16/11/2017,5.64
POLICY & COMMUNICATIONS,Stationery,PHOTOFRAMESDIRECT.,16/11/2017,90.27
POLICY & COMMUNICATIONS,Travel/Subsistence,TRAINLINE,16/11/2017,79.05
ADULT SOCIAL CARE,Catering Food & Drink,ICELAND,17/11/2017,105.63
CORPORATE AFFAIRS,Taxi Fares,WWW.ADDISONLEE.COM,17/11/2017,18.00
CORPORATE AFFAIRS,Taxi Fares,WWW.ADDISONLEE.COM,17/11/2017,80.50
ENVIRONMENT,Consultancy-Business,FORTRESS MASTER LOCKSMITH,17/11/2017,2.92
ENVIRONMENT,Stationery,Amazon UK Marketplace,17/11/2017,11.77
FINANCE,Domestic Goods-Other,WWW.ARGOS.CO.UK,17/11/2017,114.89
ADULT SOCIAL CARE,Travel/Subsistence,OYSTER BUS AUTOTOP,18/11/2017,20.00
ADULT SOCIAL CARE,Catering Food & Drink,TESCO STORES 5999,20/11/2017,83.05
ADULT SOCIAL CARE,Consultancy-Other,TVLICENSING.CO.UK,20/11/2017,147.00
ADULT SOCIAL CARE,Works-Construction,PROWASTE,20/11/2017,312.00
CHILDREN'S SERVICES,Domestic Goods-Other,WWW.ARGOS.CO.UK,20/11/2017,339.98
CHILDREN'S SERVICES,Domestic Goods-Other,ARGOS RETAIL GROUP,20/11/2017,13.99
CHILDREN'S SERVICES,Facilities-Advertising,WH SMITH,20/11/2017,1.99
EDUCATION & LEARNING,Domestic Goods-Other,WWW.ARGOS.CO.UK,20/11/2017,24.93
ENVIRONMENT,Horticultural-Other,WWW.HEDGINGPLANTSDIRE,20/11/2017,91.67
BUSINESS & CUSTOMER SERVICES,Travel/Subsistence,OYSTER AUTOTOPUP,21/11/2017,40.00
BUSINESS & CUSTOMER SERVICES,Travel/Subsistence,OYSTER AUTOTOPUP,21/11/2017,40.00
BUSINESS & CUSTOMER SERVICES,Travel/Subsistence,OYSTER AUTOTOPUP,21/11/2017,40.00
BUSINESS & CUSTOMER SERVICES,Travel/Subsistence,OYSTER AUTOTOPUP,21/11/2017,40.00
BUSINESS & CUSTOMER SERVICES,Travel/Subsistence,OYSTER BUS AUTOTOP,21/11/2017,40.00
BUSINESS & CUSTOMER SERVICES,Travel/Subsistence,OYSTER BUS AUTOTOP,21/11/2017,40.00
BUSINESS & CUSTOMER SERVICES,Travel/Subsistence,TRAINLINE,21/11/2017,102.00
BUSINESS & CUSTOMER SERVICES,Travel/Subsistence,TRAINLINE,21/11/2017,15.96
BUSINESS & CUSTOMER SERVICES,Travel/Subsistence,TRAINLINE,21/11/2017,223.94
CHILDREN'S SERVICES,Domestic Goods-Other,WWW.ARGOS.CO.UK,21/11/2017,274.93
CHILDREN'S SERVICES,Financial Services,L B CAMDEN INT,21/11/2017,-11.00
CHILDREN'S SERVICES,Financial Services,GRO HM PASSPORT OFFICE,21/11/2017,27.75
CHILDREN'S SERVICES,Use of Public Transport,LUL TICKET MACHINE,21/11/2017,50.00
EDUCATION & LEARNING,Education-Library Books,AMAZON SVCS EU-UK AMAZON.,21/11/2017,11.98
ENVIRONMENT,Building-General,SENATOR DEVELOPMEN,21/11/2017,11.49
ENVIRONMENT,Building-Paint,B & Q 1009,21/11/2017,31.94
ENVIRONMENT,Building-Paint,S LONDON DECORTORS,21/11/2017,71.02
ENVIRONMENT,Domestic Goods-Other,MACHINE MART LTD,21/11/2017,41.95
ENVIRONMENT,Domestic Goods-Other,PAYPAL *SHAEER,21/11/2017,14.99
ENVIRONMENT,Financial Services,EA WASTE CARRIERS,21/11/2017,155.00
ENVIRONMENT,Travel/Subsistence,TFL ROAD CHARGE,21/11/2017,25.50
ENVIRONMENT,Travel/Subsistence,TFL ROAD CHARGE,21/11/2017,11.50
FINANCE,Travel/Subsistence,TFL ROAD CHARGE,21/11/2017,11.50
CHILDREN'S SERVICES,Accommodation,HOLIDAY INNS,22/11/2017,183.34
CHILDREN'S SERVICES,Conference Expenses,THE POST OFFICE,22/11/2017,750.00
CHILDREN'S SERVICES,Domestic Goods-Other,ARGOS RETAIL GROUP,22/11/2017,43.99
CHILDREN'S SERVICES,Domestic Goods-Other,ARGOS RETAIL GROUP,22/11/2017,-43.99
CHILDREN'S SERVICES,Domestic Goods-Other,WWW.ARGOS.CO.UK,22/11/2017,"1,221.90"
CHILDREN'S SERVICES,Education-Other,WWW.OXFORDCOLLEGE.AC,22/11/2017,365.00
CHILDREN'S SERVICES,Facilities-Storage,KATOR STORAGE LTD,22/11/2017,215.50
CHILDREN'S SERVICES,Financial Services-Grants,THE NATIONAL YOUTH ADV,22/11/2017,559.58
CHILDREN'S SERVICES,HMRC Fees,CASH ADVANCE FEE,22/11/2017,8.85
CHILDREN'S SERVICES,HMRC Fees,PO BRIXTON CROWN 2205,22/11/2017,300.00
CHILDREN'S SERVICES,Mail Services-Postage,ROYAL MAIL GROUP,22/11/2017,20.36
CHILDREN'S SERVICES,Stationery,MARKS&SPENCER PLC,22/11/2017,50.00
CHILDREN'S SERVICES,Subsistence: Breakfast Allowance,SQ *COMPARE THE MAN AND V,22/11/2017,43.93
CHILDREN'S SERVICES,Subsistence: Breakfast Allowance,ATM BARCLAYS BANK PLC,22/11/2017,300.00
CHILDREN'S SERVICES,Subsistence: Breakfast Allowance,CASH ADVANCE FEE,22/11/2017,8.85
CHILDREN'S SERVICES,Subsistence: Breakfast Allowance,HAPPY 2 MOVE LIMIT,22/11/2017,81.60
CHILDREN'S SERVICES,Subsistence: Breakfast Allowance,ARGOS RETAIL GROUP,22/11/2017,30.99
CHILDREN'S SERVICES,Subsistence: Breakfast Allowance,HAPPY 2 MOVE LIMIT,22/11/2017,81.60
CHILDREN'S SERVICES,Subsistence: Breakfast Allowance,WWW.ARGOS.CO.UK,22/11/2017,117.90
CHILDREN'S SERVICES,Travel/Subsistence,OYSTER AUTOSETTLE,22/11/2017,20.00
CHILDREN'S SERVICES,Travel/Subsistence,OYSTER AUTOTOPUP,22/11/2017,20.00
CHILDREN'S SERVICES,Travel/Subsistence,OYSTER AUTOTOPUP,22/11/2017,40.00
CHILDREN'S SERVICES,Travel/Subsistence,OYSTER AUTOTOPUP,22/11/2017,40.00
CHILDREN'S SERVICES,Travel/Subsistence,OYSTER AUTOTOPUP,22/11/2017,20.00
CHILDREN'S SERVICES,Travel/Subsistence,OYSTER AUTOTOPUP,22/11/2017,20.00
CHILDREN'S SERVICES,Travel/Subsistence,OYSTER AUTOTOPUP,22/11/2017,40.00
CHILDREN'S SERVICES,Travel/Subsistence,OYSTER AUTOTOPUP,22/11/2017,20.00
CHILDREN'S SERVICES,Travel/Subsistence,OYSTER AUTOTOPUP,22/11/2017,20.00
CHILDREN'S SERVICES,Travel/Subsistence,OYSTER AUTOTOPUP,22/11/2017,60.00
CHILDREN'S SERVICES,Travel/Subsistence,OYSTER AUTOTOPUP,22/11/2017,20.00
CHILDREN'S SERVICES,Travel/Subsistence,OYSTER BUS AUTOSET,22/11/2017,20.00
CHILDREN'S SERVICES,Travel/Subsistence,OYSTER BUS AUTOTOP,22/11/2017,20.00
CHILDREN'S SERVICES,Travel/Subsistence,OYSTER BUS AUTOTOP,22/11/2017,40.00
CHILDREN'S SERVICES,Travel/Subsistence,OYSTER BUS AUTOTOP,22/11/2017,20.00
CHILDREN'S SERVICES,Travel/Subsistence,OYSTER BUS AUTOTOP,22/11/2017,20.00
CHILDREN'S SERVICES,Travel/Subsistence,OYSTER BUS AUTOTOP,22/11/2017,40.00
CHILDREN'S SERVICES,Travel/Subsistence,OYSTER BUS AUTOTOP,22/11/2017,20.00
CHILDREN'S SERVICES,Travel/Subsistence,OYSTER BUS AUTOTOP,22/11/2017,40.00
CHILDREN'S SERVICES,Travel/Subsistence,OYSTER BUS AUTOTOP,22/11/2017,20.00
CHILDREN'S SERVICES,Travel/Subsistence,OYSTER BUS AUTOTOP,22/11/2017,40.00
CHILDREN'S SERVICES,Travel/Subsistence,OYSTER BUS AUTOTOP,22/11/2017,20.00
CHILDREN'S SERVICES,Travel/Subsistence,OYSTER BUS AUTOTOP,22/11/2017,60.00
CHILDREN'S SERVICES,Travel/Subsistence,OYSTER BUS AUTOTOP,22/11/2017,20.00
CHILDREN'S SERVICES,Travel/Subsistence,OYSTER BUS AUTOTOP,22/11/2017,60.00
CHILDREN'S SERVICES,Travel/Subsistence,OYSTER BUS AUTOTOP,22/11/2017,20.00
CHILDREN'S SERVICES,Travel/Subsistence,OYSTER RENEW WEB,22/11/2017,35.00
CHILDREN'S SERVICES,Travel/Subsistence,OYSTER RENEW WEB,22/11/2017,60.00
CHILDREN'S SERVICES,Travel/Subsistence,OYSTER RENEW WEB,22/11/2017,0.00
CHILDREN'S SERVICES,Travel/Subsistence,OYSTER RENEW WEB,22/11/2017,30.00
CHILDREN'S SERVICES,Travel/Subsistence,OYSTER RENEW WEB,22/11/2017,10.00
CHILDREN'S SERVICES,Travel/Subsistence,OYSTER AUTOTOPUP,22/11/2017,20.00
CHILDREN'S SERVICES,Travel/Subsistence,OYSTER AUTOTOPUP,22/11/2017,20.00
CHILDREN'S SERVICES,Travel/Subsistence,OYSTER BUS AUTOTOP,22/11/2017,20.00
CHILDREN'S SERVICES,Travel/Subsistence,OYSTER RENEW WEB,22/11/2017,-25.00
CHILDREN'S SERVICES,Travel/Subsistence,OYSTER BUS AUTOTOP,22/11/2017,20.00
CHILDREN'S SERVICES,Travel/Subsistence,EASYJET ET42HK1,22/11/2017,79.75
CHILDREN'S SERVICES,Travel/Subsistence,EASYJET ET42HK1,22/11/2017,-26.00
CHILDREN'S SERVICES,Works-Construction,DIVINE MAINTENANCE LIM,22/11/2017,100.00
EDUCATION & LEARNING,Education-Library Books,AMAZON EU AMAZON.CO.UK,22/11/2017,20.68
EDUCATION & LEARNING,Education-Library Books,AMAZON EU AMAZON.CO.UK,22/11/2017,6.99
EDUCATION & LEARNING,Education-Library Books,AMAZON SVCS EU-UK AMAZON.,22/11/2017,4.00
EDUCATION & LEARNING,Education-Library Books,AMAZON SVCS EU-UK AMAZON.,22/11/2017,26.23
EDUCATION & LEARNING,Education-Library Books,AMAZON SVCS EU-UK AMAZON.,22/11/2017,23.03
EDUCATION & LEARNING,Education-Library Books,DEMCO EUROPE,22/11/2017,107.40
EDUCATION & LEARNING,Food/refreshment - meetings,SAINSBURYS S/MKTS,22/11/2017,6.75
FINANCE,Use of Public Transport,LUL TICKET MACHINE,22/11/2017,50.00
FINANCE,Use of Public Transport,LUL TICKET MACHINE,22/11/2017,10.00
HOUSING SERVICES (HRA),Conference Expenses,SAINSBURYS,22/11/2017,23.40
PUBLIC HEALTH,Conference Expenses,EMAP LTD,22/11/2017,"5,040.00"
PUBLIC HEALTH,Financial Services,RUSSELLS HALL HOSP GEN,22/11/2017,137.00
PUBLIC HEALTH,Healthcare Services,GBS RE LANCASHIRE CARE,22/11/2017,112.81
PUBLIC HEALTH,Healthcare Services,NEWCASTLE HOSPITAL RP,22/11/2017,264.00
PUBLIC HEALTH,Healthcare Services,NHS SBS,22/11/2017,150.12
PUBLIC HEALTH,Healthcare Services,NHS SHARED BUSINESS SE,22/11/2017,243.00
PUBLIC HEALTH,Healthcare Services,SOUTH TYNESIDE NHS,22/11/2017,132.00
ADULT SOCIAL CARE,Works-Construction,PROWASTE,23/11/2017,300.00
CHILDREN'S SERVICES,Books/Publications/Resources,BRIXTON FURNITURE CENT,23/11/2017,405.00
CHILDREN'S SERVICES,Financial Services,GRO HM PASSPORT OFFICE,23/11/2017,118.00
CHILDREN'S SERVICES,Travel/Subsistence,OYSTER RENEW WEB,23/11/2017,25.00
CHILDREN'S SERVICES,Travel/Subsistence,OYSTER RENEW WEB,23/11/2017,25.00
CHILDREN'S SERVICES,Travel/Subsistence,OYSTER RENEW WEB,23/11/2017,60.00
CHILDREN'S SERVICES,Travel/Subsistence,OYSTER RENEW WEB,23/11/2017,30.00
CHILDREN'S SERVICES,Travel/Subsistence,OYSTER RENEW WEB,23/11/2017,30.00
CHILDREN'S SERVICES,Travel/Subsistence,OYSTER RENEW WEB,23/11/2017,30.00
CHILDREN'S SERVICES,Travel/Subsistence,OYSTER RENEW WEB,23/11/2017,30.00
CHILDREN'S SERVICES,Travel/Subsistence,OYSTER RENEW WEB,23/11/2017,30.00
CHILDREN'S SERVICES,Travel/Subsistence,OYSTER RENEW WEB,23/11/2017,90.00
CHILDREN'S SERVICES,Travel/Subsistence,OYSTER RENEW WEB,23/11/2017,30.00
CHILDREN'S SERVICES,Travel/Subsistence,OYSTER RENEW WEB,23/11/2017,90.00
CHILDREN'S SERVICES,Use of Public Transport,JUNCTION NEWS,23/11/2017,100.00
CHILDREN'S SERVICES,Use of Public Transport,OYSTER AUTOSETTLE,23/11/2017,80.00
CHILDREN'S SERVICES,Use of Public Transport,OYSTER BUS AUTOSET,23/11/2017,20.00
CHILDREN'S SERVICES,Use of Public Transport,OYSTER BUS AUTOSET,23/11/2017,20.00
CHILDREN'S SERVICES,Use of Public Transport,OYSTER BUS AUTOTOP,23/11/2017,20.00
CHILDREN'S SERVICES,Use of Public Transport,OYSTER BUS AUTOTOP,23/11/2017,20.00
CHILDREN'S SERVICES,Use of Public Transport,OYSTER RENEW WEB,23/11/2017,40.00
CHILDREN'S SERVICES,Use of Public Transport,OYSTER RENEW WEB,23/11/2017,20.00
CHILDREN'S SERVICES,Use of Public Transport,OYSTER RENEW WEB,23/11/2017,41.50
CHILDREN'S SERVICES,Use of Public Transport,OYSTER BUS AUTOSET,23/11/2017,20.00
CHILDREN'S SERVICES,Use of Public Transport,OYSTER AUTOSETTLE,23/11/2017,40.00
CHILDREN'S SERVICES,Use of Public Transport,OYSTER RENEW WEB,23/11/2017,20.00
CORPORATE AFFAIRS,Food/refreshment - meetings,PRET A MANGER,23/11/2017,2.40
CORPORATE AFFAIRS,Travel/Subsistence,LUL TICKET MACHINE,23/11/2017,50.00
POLICY & COMMUNICATIONS,Banquet & Catering,Amazon UK Marketplace,23/11/2017,3.62
POLICY & COMMUNICATIONS,Domestic Goods-Other,AMAZON EU AMAZON.CO.UK,23/11/2017,43.73
POLICY & COMMUNICATIONS,Education-Library Books,AMAZON SVCS EU-UK AMAZON.,23/11/2017,19.95
POLICY & COMMUNICATIONS,IT Office Equipment,AMAZON SVCS EU-UK AMAZON.,23/11/2017,406.05
POLICY & COMMUNICATIONS,IT Services,AMAZON MKTPLACE PMTS,23/11/2017,34.96
POLICY & COMMUNICATIONS,IT Services,NATIONBUILDER,23/11/2017,70.27
POLICY & COMMUNICATIONS,IT Services,PANTHEON SYSTEMS INC,23/11/2017,19.74
ADULT SOCIAL CARE,Travel/Subsistence,LONDON & SOUTH EAS,24/11/2017,164.00
ADULT SOCIAL CARE,Travel/Subsistence,OYSTER AUTOTOPUP,24/11/2017,20.00
ADULT SOCIAL CARE,Travel/Subsistence,OYSTER AUTOTOPUP,24/11/2017,20.00
ENVIRONMENT,Mail Services-Postage,POST OFFICE COUNTER,24/11/2017,3.50
ADULT SOCIAL CARE,Building-Others,TESCO STORE 2764,27/11/2017,53.80
ADULT SOCIAL CARE,Catering Food & Drink,TESCO STORE 2764,27/11/2017,355.13
ADULT SOCIAL CARE,Catering Food & Drink,ICELAND,27/11/2017,66.02
ADULT SOCIAL CARE,Domestic Goods-Other,TESCO STORE 2764,27/11/2017,30.00
EDUCATION & LEARNING,Education-Library Books,Amazon UK Marketplace,27/11/2017,6.18
FINANCE,Financial Services,LAND REGISTRY,27/11/2017,3.00
FINANCE,Financial Services,LAND REGISTRY,27/11/2017,3.00
FINANCE,Financial Services,LAND REGISTRY,27/11/2017,3.00
FINANCE,Financial Services,LAND REGISTRY,27/11/2017,3.00
ADULT SOCIAL CARE,Financial Services,CASH ADVANCE FEE,28/11/2017,11.80
ADULT SOCIAL CARE,Financial Services,ROYAL BANK UK /,28/11/2017,400.00
BUSINESS & CUSTOMER SERVICES,Catering Food & Drink,SAINSBURYS S/MKTS,28/11/2017,16.00
BUSINESS & CUSTOMER SERVICES,Travel/Subsistence,OYSTER AUTOTOPUP,28/11/2017,80.00
BUSINESS & CUSTOMER SERVICES,Travel/Subsistence,OYSTER AUTOTOPUP,28/11/2017,40.00
BUSINESS & CUSTOMER SERVICES,Travel/Subsistence,OYSTER AUTOTOPUP,28/11/2017,40.00
BUSINESS & CUSTOMER SERVICES,Travel/Subsistence,OYSTER BUS AUTOTOP,28/11/2017,40.00
BUSINESS & CUSTOMER SERVICES,Travel/Subsistence,TRAINLINE,28/11/2017,42.94
BUSINESS & CUSTOMER SERVICES,Travel/Subsistence,TRAINLINE,28/11/2017,86.75
ENVIRONMENT,Building-Electrical,SCREWFIX DIRECT,28/11/2017,34.93
HUMAN RESOURCES & ORGANISATIONAL DEVELOPMENT,Banquet & Catering,WWW.OFFICESERVE.COM,28/11/2017,373.20
BUSINESS & CUSTOMER SERVICES,Arts & Leisure Services,WWWFIXTHEMUSICCOM,29/11/2017,550.00
CHILDREN'S SERVICES,Catering Food & Drink,MARKS&SPENCER PLC SACA,29/11/2017,70.10
CHILDREN'S SERVICES,Domestic Goods-Other,CARD FACTORY,29/11/2017,68.47
CHILDREN'S SERVICES,Domestic Goods-Other,WWW.ARGOS.CO.UK,29/11/2017,288.92
CHILDREN'S SERVICES,Financial Services,HM PASSPORT OFFICE,29/11/2017,49.00
CHILDREN'S SERVICES,Financial Services,GRO HM PASSPORT OFFICE,29/11/2017,23.40
CHILDREN'S SERVICES,Furniture-Domestic Furniture,BRIXTON FURNITURE CENT,29/11/2017,105.00
CHILDREN'S SERVICES,Taxi Fares,GREYHOUND CARS LTD,29/11/2017,0.00
CHILDREN'S SERVICES,Travel/Subsistence,OYSTER AUTOTOPUP,29/11/2017,40.00
CHILDREN'S SERVICES,Travel/Subsistence,OYSTER RENEW WEB,29/11/2017,20.00
CHILDREN'S SERVICES,Travel/Subsistence,OYSTER RENEW WEB,29/11/2017,20.00
CHILDREN'S SERVICES,Travel/Subsistence,OYSTER RENEW WEB,29/11/2017,20.00
CHILDREN'S SERVICES,Travel/Subsistence,OYSTER BUS AUTOTOP,29/11/2017,20.00
CHILDREN'S SERVICES,Travel/Subsistence,OYSTER BUS AUTOTOP,29/11/2017,20.00
CHILDREN'S SERVICES,Travel/Subsistence,OYSTER RENEW WEB,29/11/2017,20.00
CHILDREN'S SERVICES,Travel/Subsistence,OYSTER AUTOTOPUP,29/11/2017,20.00
CHILDREN'S SERVICES,Travel/Subsistence,OYSTER AUTOTOPUP,29/11/2017,20.00
CHILDREN'S SERVICES,Travel/Subsistence,OYSTER AUTOTOPUP,29/11/2017,20.00
CHILDREN'S SERVICES,Travel/Subsistence,OYSTER BUS AUTOTOP,29/11/2017,40.00
CHILDREN'S SERVICES,Travel/Subsistence,OYSTER BUS AUTOTOP,29/11/2017,40.00
CHILDREN'S SERVICES,Travel/Subsistence,OYSTER RENEW WEB,29/11/2017,-10.00
CHILDREN'S SERVICES,Works-Construction,SQ *COMPARE THE MAN AND V,29/11/2017,46.10
EDUCATION & LEARNING,Books/Publications/Resources,PRIME STORE,29/11/2017,177.30
EDUCATION & LEARNING,Education-Library Books,AMAZON EU AMAZON.CO.UK,29/11/2017,12.56
EDUCATION & LEARNING,Education-Library Books,AMAZON SVCS EU-UK AMAZON.,29/11/2017,21.09
EDUCATION & LEARNING,Education-Library Books,AMAZON SVCS EU-UK AMAZON.,29/11/2017,35.91
EDUCATION & LEARNING,Education-Library Books,AMAZON UK RETAIL AMAZON.C,29/11/2017,15.99
ENVIRONMENT,Building-Plumbing,PLUMB CENTER FFO,29/11/2017,84.77
ADULT SOCIAL CARE,Catering Food & Drink,ICELAND,30/11/2017,97.45
CHILDREN'S SERVICES,Legal Services-General Support,KENT COUNTY COUNCIL,30/11/2017,5.00
CORPORATE AFFAIRS,Catering Food & Drink,PRET A MANGER,30/11/2017,4.99
CORPORATE AFFAIRS,Travel/Subsistence,OYSTER RENEW WEB,30/11/2017,50.00
BUSINESS & CUSTOMER SERVICES,Legal Services-Other,HMCOURTS-SERVICE.G,01/12/2017,"4,746.00"
CHILDREN'S SERVICES,Domestic Goods-Other,ARGOS RETAIL GROUP,01/12/2017,27.98
EDUCATION & LEARNING,Books/Publications/Resources,WH SMITH,01/12/2017,321.05
EDUCATION & LEARNING,Education-Library Books,AMAZON.CO.UK,01/12/2017,22.88
FINANCE,Travel/Subsistence,OYSTER AUTOTOPUP,01/12/2017,20.00
FINANCE,Travel/Subsistence,OYSTER BUS AUTOTOP,01/12/2017,20.00
EDUCATION & LEARNING,Education-Library Books,AMAZON.CO.UK,02/12/2017,9.16
EDUCATION & LEARNING,Education-Library Books,AMAZON.CO.UK,02/12/2017,2.99
EDUCATION & LEARNING,Education-Library Books,AMAZON.CO.UK,02/12/2017,26.97
ENVIRONMENT,Stationery,AMAZON UK RETAIL AMAZON.C,02/12/2017,151.20
ENVIRONMENT,Stationery,AMAZON.CO.UK,02/12/2017,19.98
ENVIRONMENT,Stationery,ARGOS,02/12/2017,9.99
ENVIRONMENT,Stationery,Amazon UK Retail,02/12/2017,129.92
ENVIRONMENT,Stationery,Amazon UK Retail,02/12/2017,37.80
ENVIRONMENT,Use of Public Transport,UBER TRIP TPLQU HELP.UBER,02/12/2017,38.68
FINANCE,Travel/Subsistence,GOV.UK/DART-CHARGE,02/12/2017,5.00
FINANCE,Travel/Subsistence,OYSTER BUS AUTOTOP,02/12/2017,40.00
EDUCATION & LEARNING,Education-Library Books,AMAZON.CO.UK,03/12/2017,69.66
ENVIRONMENT,Building-General,SCREWFIX,03/12/2017,54.99
ENVIRONMENT,Building-General,SCREWFIX DIRECT,03/12/2017,6.32
ADULT SOCIAL CARE,Financial Services,CASH ADVANCE FEE,04/12/2017,2.95
ADULT SOCIAL CARE,Financial Services,PO THORNTON HEATH 0892,04/12/2017,80.00
BUSINESS & CUSTOMER SERVICES,Catering Food & Drink,TESCO STORES-2143,04/12/2017,35.34
BUSINESS & CUSTOMER SERVICES,Food/refreshment - meetings,TESCO STORES-2143,04/12/2017,6.70
ENVIRONMENT,Financial Services,DVLA - ENF,04/12/2017,126.00
ENVIRONMENT,Professional & Advisory Services,WWW.FTA.CO.UK,04/12/2017,195.00
ADULT SOCIAL CARE,Catering Food & Drink,ICELAND,05/12/2017,32.09
ADULT SOCIAL CARE,Catering Food & Drink,TESCO STORES 5999,05/12/2017,63.49
ADULT SOCIAL CARE,Domestic Goods-Other,WWW.ARGOS.CO.UK,05/12/2017,183.25
ADULT SOCIAL CARE,Financial Services,CASH ADVANCE FEE,05/12/2017,4.43
ADULT SOCIAL CARE,Financial Services,SAINSBURYS CASH,05/12/2017,150.00
CORPORATE AFFAIRS,Travel/Subsistence,GWR WEBSALES,05/12/2017,152.40
ENVIRONMENT,Building-General,SCREWFIX DIRECT,05/12/2017,25.82
ENVIRONMENT,Building-Tools,SCREWFIX DIRECT,05/12/2017,77.50
FINANCE,Domestic Goods-Other,WWW.ARGOS.CO.UK,05/12/2017,133.94
FINANCE,Domestic Goods-Other,WWW.ARGOS.CO.UK,05/12/2017,262.94
HOUSING SERVICES (HRA),Catering Food & Drink,TESCO STORES 2463,05/12/2017,5.80
HOUSING SERVICES (HRA),Domestic Goods-Other,POUNDLAND,05/12/2017,3.00
BUSINESS & CUSTOMER SERVICES,Catering Food & Drink,TESCO STORES 5342,06/12/2017,4.37
BUSINESS & CUSTOMER SERVICES,Domestic Goods-Other,AMAZON UK RETAIL AMAZON.C,06/12/2017,110.75
BUSINESS & CUSTOMER SERVICES,Domestic Goods-Other,ARGOS DIRECT,06/12/2017,101.97
BUSINESS & CUSTOMER SERVICES,Domestic Goods-Other,ARGOS RETAIL GROUP,06/12/2017,15.00
BUSINESS & CUSTOMER SERVICES,Domestic Goods-Other,BUYITDIRECT CO UK,06/12/2017,447.58
BUSINESS & CUSTOMER SERVICES,Domestic Goods-Other,CURRYS T/SALES,06/12/2017,711.65
BUSINESS & CUSTOMER SERVICES,Domestic Goods-Other,WWW.ARGOS.CO.UK,06/12/2017,33.94
BUSINESS & CUSTOMER SERVICES,Domestic Goods-Other,WWW.ARGOS.CO.UK,06/12/2017,109.93
BUSINESS & CUSTOMER SERVICES,Domestic Goods-Other,WWW.ARGOS.CO.UK,06/12/2017,732.95
BUSINESS & CUSTOMER SERVICES,Domestic Goods-Other,WWW.ARGOS.CO.UK,06/12/2017,"1,236.90"
BUSINESS & CUSTOMER SERVICES,Domestic Goods-Other,POUNDLAND,06/12/2017,4.17
BUSINESS & CUSTOMER SERVICES,Facilities-Storage,SAFESTORE LIMITED,06/12/2017,346.47
BUSINESS & CUSTOMER SERVICES,Financial Services,GRO HM PASSPORT OFFICE,06/12/2017,93.60
BUSINESS & CUSTOMER SERVICES,Financial Services,THE HOME OFFICE,06/12/2017,"-2,297.00"
BUSINESS & CUSTOMER SERVICES,Furniture-Domestic Furniture,DREAMS LTD,06/12/2017,399.00
BUSINESS & CUSTOMER SERVICES,Furniture-Domestic Furniture,IKEA ONLINE,06/12/2017,30.50
BUSINESS & CUSTOMER SERVICES,Furniture-Domestic Furniture,IKEA ONLINE,06/12/2017,474.00
BUSINESS & CUSTOMER SERVICES,Taxi Fares,GREYHOUND CARS LTD,06/12/2017,39.17
BUSINESS & CUSTOMER SERVICES,Taxi Fares,GREYHOUND CARS LTD,06/12/2017,98.91
BUSINESS & CUSTOMER SERVICES,Taxi Fares,GREYHOUND CARS LTD,06/12/2017,90.51
BUSINESS & CUSTOMER SERVICES,Travel/Subsistence,EUROSTAR INTERNET,06/12/2017,184.00
BUSINESS & CUSTOMER SERVICES,Travel/Subsistence,OYSTER AUTOSETTLE,06/12/2017,60.00
BUSINESS & CUSTOMER SERVICES,Travel/Subsistence,OYSTER BUS AUTOSET,06/12/2017,40.00
BUSINESS & CUSTOMER SERVICES,Travel/Subsistence,OYSTER BUS AUTOSET,06/12/2017,60.00
BUSINESS & CUSTOMER SERVICES,Travel/Subsistence,OYSTER BUS AUTOTOP,06/12/2017,20.00
BUSINESS & CUSTOMER SERVICES,Travel/Subsistence,OYSTER ISSUE TEL,06/12/2017,50.00
BUSINESS & CUSTOMER SERVICES,Travel/Subsistence,OYSTER RENEW WEB,06/12/2017,120.00
EDUCATION & LEARNING,Education-Other,Amazon UK Marketplace,06/12/2017,258.00
EDUCATION & LEARNING,Furniture-Domestic Furniture,IKEA LIMITED,06/12/2017,22.71
EDUCATION & LEARNING,Furniture-Domestic Furniture,IKEA LIMITED,06/12/2017,367.08
EDUCATION & LEARNING,Furniture-Soft Furnishings,IKEA LIMITED,06/12/2017,33.33
EDUCATION & LEARNING,Furniture-Soft Furnishings,IKEA LIMITED,06/12/2017,33.33
FINANCE,Financial Services,LBL NOT PRESENT,06/12/2017,10.17
FINANCE,Travel/Subsistence,OYSTER AUTOTOPUP,06/12/2017,40.00
FINANCE,Travel/Subsistence,OYSTER AUTOTOPUP,06/12/2017,40.00
FINANCE,Travel/Subsistence,OYSTER AUTOTOPUP,06/12/2017,40.00
FINANCE,Travel/Subsistence,OYSTER BUS AUTOTOP,06/12/2017,40.00
FINANCE,Use of Public Transport,LUL TICKET MACHINE,06/12/2017,50.00
FINANCE,Use of Public Transport,LUL TICKET MACHINE,06/12/2017,20.00
FINANCE,Use of Public Transport,LUL TICKET MACHINE,06/12/2017,30.00
ADULT SOCIAL CARE,Catering Food & Drink,ICELAND,07/12/2017,115.60
ADULT SOCIAL CARE,Catering Food & Drink,ICELAND,07/12/2017,135.37
ADULT SOCIAL CARE,Financial Services,CASH ADVANCE FEE,07/12/2017,7.38
ADULT SOCIAL CARE,Financial Services,NATWEST BANK /,07/12/2017,250.00
BUSINESS & CUSTOMER SERVICES,Building-Floors,BUDGET CARPETS 1,07/12/2017,447.00
BUSINESS & CUSTOMER SERVICES,Domestic Goods-Other,ARGOS DIRECT,07/12/2017,169.99
BUSINESS & CUSTOMER SERVICES,Domestic Goods-Other,WWW.ARGOS.CO.UK,07/12/2017,469.99
BUSINESS & CUSTOMER SERVICES,Facilities-Storage,SAFESTORE LIMITED,07/12/2017,474.30
BUSINESS & CUSTOMER SERVICES,Financial Services-Grants,ABBEVILLES RESTAURANT,07/12/2017,204.75
BUSINESS & CUSTOMER SERVICES,Furniture-Domestic Furniture,APPLIANCEDIRECT CO,07/12/2017,486.10
BUSINESS & CUSTOMER SERVICES,Furniture-Domestic Furniture,WWW.DFS.CO.UK,07/12/2017,80.00
BUSINESS & CUSTOMER SERVICES,Travel/Subsistence,OYSTER RENEW WEB,07/12/2017,20.00
CHILDREN'S SERVICES,Catering Food & Drink,HOPE & ANCHOR,07/12/2017,100.00
CHILDREN'S SERVICES,Legal Services-Other,HMCTS UPPER TRIB,07/12/2017,100.00
CHILDREN'S SERVICES,Taxi Fares,ABEX54C42 LONDON NET C,07/12/2017,42.51
CHILDREN'S SERVICES,Travel/Subsistence,OYSTER RENEW WEB,07/12/2017,55.00
CHILDREN'S SERVICES,Travel/Subsistence,TFL OYST PHOTOCARD,07/12/2017,10.00
CHILDREN'S SERVICES,Travel/Subsistence,OYSTER RENEW WEB,07/12/2017,60.00
CHILDREN'S SERVICES,Travel/Subsistence,OYSTER RENEW WEB,07/12/2017,30.00
CHILDREN'S SERVICES,Travel/Subsistence,OYSTER RENEW WEB,07/12/2017,120.00
CHILDREN'S SERVICES,Travel/Subsistence,OYSTER RENEW WEB,07/12/2017,30.00
CHILDREN'S SERVICES,Travel/Subsistence,BRIXTONHILL EXPRESS,07/12/2017,160.00
CORPORATE AFFAIRS,Catering Food & Drink,POUNDLAND LTD 1203,07/12/2017,6.00
CORPORATE AFFAIRS,Catering Food & Drink,SAINSBURYS S/MKTS,07/12/2017,26.75
CORPORATE AFFAIRS,Catering Food & Drink,TESCO STORES 5342,07/12/2017,2.00
CORPORATE AFFAIRS,Travel/Subsistence,LUL TICKET MACHINE,07/12/2017,50.00
CORPORATE AFFAIRS,Travel/Subsistence,OYSTER RENEW WEB,07/12/2017,50.00
EDUCATION & LEARNING,Education-Library Books,AMAZON UK RETAIL AMAZON.C,07/12/2017,18.49
EDUCATION & LEARNING,Education-Library Books,AMAZON.CO.UK,07/12/2017,12.31
EDUCATION & LEARNING,Education-Library Books,AMAZON.CO.UK,07/12/2017,40.56
EDUCATION & LEARNING,Education-Library Books,Amazon UK Retail,07/12/2017,24.57
EDUCATION & LEARNING,Education-Library Books,Amazon UK Retail,07/12/2017,6.29
EDUCATION & LEARNING,Education-Library Books,Amazon UK Retail,07/12/2017,6.99
EDUCATION & LEARNING,Education-Library Books,AMAZON UK RETAIL AMAZON.C,07/12/2017,63.82
EDUCATION & LEARNING,Education-Other,Amazon UK Marketplace,07/12/2017,11.74
ENVIRONMENT,Domestic Goods-Other,AMAZON UK RETAIL AMAZON.C,07/12/2017,24.50
ENVIRONMENT,Horticultural-Seeds & Plants,FLORAL HALL,07/12/2017,50.00
ADULT SOCIAL CARE,Financial Services,SAINSBURYS CASH,08/12/2017,20.00
BUSINESS & CUSTOMER SERVICES,Mail Services-Postage,POST OFFICE COUNTER,08/12/2017,112.00
CHILDREN'S SERVICES,Books/Publications/Resources,AMAZON EU AMAZON.CO.UK,08/12/2017,46.96
ENVIRONMENT,Building-General,SCREWFIX,08/12/2017,54.99
ENVIRONMENT,Horticultural-Other,NHBS LTD,08/12/2017,109.45
ENVIRONMENT,Catering Food & Drink,AMAZON.CO.UK,09/12/2017,53.75
EDUCATION & LEARNING,Catering Food & Drink,LIDL UK,10/12/2017,4.12
EDUCATION & LEARNING,Travel/Subsistence,OYSTER AUTOTOPUP,10/12/2017,20.00
EDUCATION & LEARNING,Travel/Subsistence,OYSTER BUS AUTOTOP,10/12/2017,20.00
EDUCATION & LEARNING,Travel/Subsistence,OYSTER BUS AUTOTOP,10/12/2017,20.00
EDUCATION & LEARNING,Travel/Subsistence,OYSTER BUS AUTOTOP,10/12/2017,20.00
EDUCATION & LEARNING,Travel/Subsistence,OYSTER BUS AUTOTOP,10/12/2017,20.00
ADULT SOCIAL CARE,Financial Services,CASH ADVANCE FEE,11/12/2017,2.95
ADULT SOCIAL CARE,Financial Services,CASH ADVANCE FEE,11/12/2017,2.95
ADULT SOCIAL CARE,Financial Services,SAINSBURYS CASH,11/12/2017,20.00
CORPORATE AFFAIRS,Taxi Fares,WWW.ADDISONLEE.COM,11/12/2017,37.00
CORPORATE AFFAIRS,Taxi Fares,WWW.ADDISONLEE.COM,11/12/2017,49.10
ENVIRONMENT,Cemetery & Crematorium,Amazon UK Marketplace,11/12/2017,14.70
FINANCE,Education-Library Books,AMAZON.CO.UK,11/12/2017,179.98
FINANCE,Stationery,Amazon UK Marketplace,11/12/2017,32.89
ADULT SOCIAL CARE,Catering Food & Drink,TESCO STORES 5999,12/12/2017,64.25
ADULT SOCIAL CARE,Financial Services,CASH ADVANCE FEE,12/12/2017,6.20
ADULT SOCIAL CARE,Financial Services,SAINSBURYS CASH,12/12/2017,210.00
EDUCATION & LEARNING,Catering Food & Drink,TESCO STORE 2143,12/12/2017,61.92
EDUCATION & LEARNING,Education-Library Books,AMAZON SVCS EU-UK AMAZON.,12/12/2017,20.79
EDUCATION & LEARNING,Education-Library Books,AMAZON.CO.UK,12/12/2017,2.74
EDUCATION & LEARNING,Education-Library Books,AMAZON.CO.UK,12/12/2017,15.62
EDUCATION & LEARNING,Education-Library Books,AMAZON.CO.UK,12/12/2017,24.66
EDUCATION & LEARNING,Education-Library Books,Amazon UK Marketplace,12/12/2017,11.05
EDUCATION & LEARNING,Education-Library Books,Amazon UK Retail,12/12/2017,22.73
EDUCATION & LEARNING,Education-Library Books,Amazon UK Retail,12/12/2017,12.38
EDUCATION & LEARNING,Education-Other,B&Q DIRECT,12/12/2017,30.00
EDUCATION & LEARNING,Education-Other,PRINTERBASE,12/12/2017,208.91
ENVIRONMENT,Books/Publications/Resources,CANDI GIFTS BASKETWARE,12/12/2017,17.50
ENVIRONMENT,Catering Food & Drink,AMAZON.CO.UK,12/12/2017,13.98
ENVIRONMENT,Education-Library Books,Amazon UK Marketplace,12/12/2017,23.99
ENVIRONMENT,Facilities-Market Research,Amazon Prime,12/12/2017,-7.99
ADULT SOCIAL CARE,Financial Services,CASH ADVANCE FEE,13/12/2017,11.80
ADULT SOCIAL CARE,Financial Services,HALX - BRIXTON,13/12/2017,400.00
EDUCATION & LEARNING,Domestic Goods-Other,WWW.PRINTERBASE.CO.UK,13/12/2017,63.50
ENVIRONMENT,Books/Publications/Resources,ROAD TRANSPORT,13/12/2017,4.00
ENVIRONMENT,Mail Services-Postage,POST OFFICE COUNTER,13/12/2017,6.45
ENVIRONMENT,Use of Public Transport,LBHACKNEY PYMT,13/12/2017,36.40
HUMAN RESOURCES & ORGANISATIONAL DEVELOPMENT,Financial Services,UKBA6169744197,13/12/2017,"4,199.00"
HUMAN RESOURCES & ORGANISATIONAL DEVELOPMENT,Financial Services,UKBA7112731663,13/12/2017,"-3,000.00"
POLICY & COMMUNICATIONS,Facilities-Design & Photography,PHOTOFRAMESDIRECT.,13/12/2017,-61.67
ADULT SOCIAL CARE,Financial Services,BRADFORD COUNCIL,14/12/2017,406.00
ADULT SOCIAL CARE,Legal Services-Other,HMCOURTS-SERVICE.G,14/12/2017,150.00
ADULT SOCIAL CARE,Legal Services-Other,HMCOURTS-SERVICE.G,14/12/2017,75.00
ADULT SOCIAL CARE,Legal Services-Other,HMCOURTS-SERVICE.G,14/12/2017,150.00
ADULT SOCIAL CARE,Legal Services-Other,HMCOURTS-SERVICE.G,14/12/2017,225.00
ADULT SOCIAL CARE,Legal Services-Other,HMCOURTS-SERVICE.G,14/12/2017,150.00
ADULT SOCIAL CARE,Legal Services-Other,HMCOURTS-SERVICE.G,14/12/2017,150.00
ADULT SOCIAL CARE,Legal Services-Other,HMCOURTS-SERVICE.G,14/12/2017,75.00
ADULT SOCIAL CARE,Legal Services-Other,HMCOURTS-SERVICE.G,14/12/2017,150.00
BUSINESS & CUSTOMER SERVICES,Catering Food & Drink,TESCO STORE 3300,14/12/2017,100.00
BUSINESS & CUSTOMER SERVICES,Domestic Goods-Other,ARGOS DIRECT,14/12/2017,258.94
BUSINESS & CUSTOMER SERVICES,Facilities-Storage,SAFESTORE LIMITED,14/12/2017,41.64
BUSINESS & CUSTOMER SERVICES,Taxi Fares,GREYHOUND CARS LTD,14/12/2017,61.43
BUSINESS & CUSTOMER SERVICES,Travel/Subsistence,OYSTER AUTOTOPUP,14/12/2017,20.00
BUSINESS & CUSTOMER SERVICES,Travel/Subsistence,OYSTER RENEW WEB,14/12/2017,-20.00
CORPORATE AFFAIRS,Legal Services-General Support,HMCOURTS-SERVICE.G,14/12/2017,10.00
CORPORATE AFFAIRS,Travel/Subsistence,LUL TICKET MACHINE,14/12/2017,50.00
CORPORATE AFFAIRS,Travel/Subsistence,OYSTER RENEW WEB,14/12/2017,-50.00
EDUCATION & LEARNING,Catering Food & Drink,SAINSBURYS S/MKTS,14/12/2017,23.65
EDUCATION & LEARNING,Catering Food & Drink,SAINSBURYS S/MKTS,14/12/2017,26.95
EDUCATION & LEARNING,Catering Food & Drink,TESCO STORES-2143,14/12/2017,28.05
EDUCATION & LEARNING,Domestic Goods-Other,SCRIBBLER,14/12/2017,2.75
EDUCATION & LEARNING,Domestic Goods-Other,SQ PROFESSIONAL LTD,14/12/2017,16.00
EDUCATION & LEARNING,Facilities-Advertising,WH SMITH,14/12/2017,16.01
EDUCATION & LEARNING,Facilities-Advertising,WH SMITH,14/12/2017,5.79
EDUCATION & LEARNING,Mail Services-Postage,POST OFFICE COUNTER,14/12/2017,100.00
"GROWTH, PLANNING & EMPLOYMENT",Consultancy-Business,WWW.TRANSPORTXTRA.COM,14/12/2017,145.00
"GROWTH, PLANNING & EMPLOYMENT",Cycles Purchase,BALFE'S BIKES LTD,14/12/2017,132.80
"GROWTH, PLANNING & EMPLOYMENT",Domestic Goods-Other,APPLE STORE R244,14/12/2017,314.16
"GROWTH, PLANNING & EMPLOYMENT",Financial Services,LAMBETH INTERNET PAYM,14/12/2017,21.35
"GROWTH, PLANNING & EMPLOYMENT",Travel/Subsistence,OYSTER AUTOTOPUP,14/12/2017,20.00
"GROWTH, PLANNING & EMPLOYMENT",Travel/Subsistence,OYSTER AUTOTOPUP,14/12/2017,20.00
"GROWTH, PLANNING & EMPLOYMENT",Travel/Subsistence,OYSTER AUTOTOPUP,14/12/2017,20.00
"GROWTH, PLANNING & EMPLOYMENT",Travel/Subsistence,OYSTER AUTOTOPUP,14/12/2017,20.00
"GROWTH, PLANNING & EMPLOYMENT",Travel/Subsistence,OYSTER BUS AUTOTOP,14/12/2017,20.00
"GROWTH, PLANNING & EMPLOYMENT",Travel/Subsistence,OYSTER BUS AUTOTOP,14/12/2017,20.00
BUSINESS & CUSTOMER SERVICES,Professional subscriptions,SurveyMonkey,15/12/2017,280.00
FINANCE,Financial Services,LAND REGISTRY,15/12/2017,3.00
FINANCE,Financial Services,LAND REGISTRY,15/12/2017,9.00
FINANCE,Travel/Subsistence,OYSTER AUTOTOPUP,15/12/2017,40.00
ADULT SOCIAL CARE,Catering Food & Drink,ASDA STORES LTD 5871,18/12/2017,347.12
ADULT SOCIAL CARE,Catering Food & Drink,TESCO STORES 5999,18/12/2017,98.65
ADULT SOCIAL CARE,IT Software,CITY LIT,18/12/2017,44.00
ENVIRONMENT,Education-Library Books,Amazon UK Marketplace,19/12/2017,4.95
FINANCE,Consultancy-Business,FAST KEY SERVICES LIMI,19/12/2017,3.55
FINANCE,Travel/Subsistence,OYSTER AUTOTOPUP,19/12/2017,40.00
FINANCE,Travel/Subsistence,OYSTER BUS AUTOTOP,19/12/2017,20.00
FINANCE,Travel/Subsistence,TFL ROAD CHARGE,19/12/2017,11.50
ADULT SOCIAL CARE,Catering Food & Drink,TESCO STORE 2764,21/12/2017,87.33
EDUCATION & LEARNING,Education-Library Books,AMAZON SVCS EU-UK AMAZON.,21/12/2017,5.29
EDUCATION & LEARNING,Education-Library Books,Amazon UK Marketplace,21/12/2017,25.40
EDUCATION & LEARNING,Education-Library Books,Amazon UK Marketplace,21/12/2017,9.48
EDUCATION & LEARNING,Education-Library Books,Amazon UK Marketplace,21/12/2017,13.46
EDUCATION & LEARNING,Education-Library Books,Amazon UK Marketplace,21/12/2017,22.40
EDUCATION & LEARNING,Education-Library Books,Amazon UK Retail,21/12/2017,7.75
EDUCATION & LEARNING,Education-Library Books,Amazon UK Retail,21/12/2017,13.98
EDUCATION & LEARNING,Education-Other,AMAZON SVCS EU-UK AMAZON.,21/12/2017,44.75
EDUCATION & LEARNING,Education-Other,AMAZON EU AMAZON.CO.UK,21/12/2017,10.00
EDUCATION & LEARNING,Education-Other,AMAZON EU AMAZON.CO.UK,21/12/2017,9.60
EDUCATION & LEARNING,Education-Other,AMAZON SVCS EU-UK AMAZON.,21/12/2017,7.90
EDUCATION & LEARNING,Education-Other,Amazon UK Marketplace,21/12/2017,47.98
EDUCATION & LEARNING,Education-Other,Amazon UK Marketplace,21/12/2017,2.90
BUSINESS & CUSTOMER SERVICES,Charges and Penalties,WWWLONDONNETCARSCOU,22/12/2017,32.00
BUSINESS & CUSTOMER SERVICES,Use of Public Transport,OYSTER ISSUE WEB,22/12/2017,105.00
BUSINESS & CUSTOMER SERVICES,Use of Public Transport,WWWLONDONNETCARSCOU,22/12/2017,47.00
EDUCATION & LEARNING,Education-Library Books,Amazon UK Retail,22/12/2017,10.48
POLICY & COMMUNICATIONS,Facilities-Design & Photography,BADGES PLUS LTD,24/12/2017,180.75
POLICY & COMMUNICATIONS,Facilities-Market Research,123 REG R/T,24/12/2017,19.99
ADULT SOCIAL CARE,Catering Food & Drink,TESCO STORES 5999,27/12/2017,67.89
ADULT SOCIAL CARE,Education-Other,MORLEY COLLEGE LTD,27/12/2017,210.00
ENVIRONMENT,Stationery,Amazon UK Marketplace,28/12/2017,23.40
ENVIRONMENT,Stationery,Amazon UK Marketplace,28/12/2017,6.88
